{"text_format":"1","workbook":"xlsx","n_sheets":2,"sheets":["Recap","Stock"],"not_rendered":{"charts":0,"images":0,"macros":1,"external_links":0,"defined_names":0,"comments":0,"pivot_tables":0},"unopened":[],"bounds":{"document_bytes":16777216,"sheet_cells":100000,"rows_first":2000,"rows_last":500,"rows_between":2000,"halvings":0,"cell_chars":16384,"cell_head_chars":4096},"cells_cut":0,"cells_raw":0,"read":"whole","date_system":"1900"}

{"sheet":"Recap","index":0,"n_rows":13,"n_cols":12,"rows_kept":13,"cut":false,"hidden":false,"merged":[]}
[null,"Rouge","Noir","Vert","Bleu","Grais","Marron","Orange","Argent","Violet","Rose","Jaune"]
["FM04",{"$f":"IFERROR(OFFSET(Stock!$F$1,SUMPRODUCT((Stock!$B$2:$B$10000=B$1)*(Stock!$A$2:$A$10000=$A2)*(ROW($2:$10000)-1)),0),\"\")","v":40},{"$f":"IFERROR(OFFSET(Stock!$F$1,SUMPRODUCT((Stock!$B$2:$B$10000=C$1)*(Stock!$A$2:$A$10000=$A2)*(ROW($2:$10000)-1)),0),\"\")","v":40},{"$f":"IFERROR(OFFSET(Stock!$F$1,SUMPRODUCT((Stock!$B$2:$B$10000=D$1)*(Stock!$A$2:$A$10000=$A2)*(ROW($2:$10000)-1)),0),\"\")","v":40},{"$f":"IFERROR(OFFSET(Stock!$F$1,SUMPRODUCT((Stock!$B$2:$B$10000=E$1)*(Stock!$A$2:$A$10000=$A2)*(ROW($2:$10000)-1)),0),\"\")","v":40},{"$f":"IFERROR(OFFSET(Stock!$F$1,SUMPRODUCT((Stock!$B$2:$B$10000=F$1)*(Stock!$A$2:$A$10000=$A2)*(ROW($2:$10000)-1)),0),\"\")","v":40},{"$f":"IFERROR(OFFSET(Stock!$F$1,SUMPRODUCT((Stock!$B$2:$B$10000=G$1)*(Stock!$A$2:$A$10000=$A2)*(ROW($2:$10000)-1)),0),\"\")","v":40},{"$f":"IFERROR(OFFSET(Stock!$F$1,SUMPRODUCT((Stock!$B$2:$B$10000=H$1)*(Stock!$A$2:$A$10000=$A2)*(ROW($2:$10000)-1)),0),\"\")","v":40},{"$f":"IFERROR(OFFSET(Stock!$F$1,SUMPRODUCT((Stock!$B$2:$B$10000=I$1)*(Stock!$A$2:$A$10000=$A2)*(ROW($2:$10000)-1)),0),\"\")","v":40},{"$f":"IFERROR(OFFSET(Stock!$F$1,SUMPRODUCT((Stock!$B$2:$B$10000=J$1)*(Stock!$A$2:$A$10000=$A2)*(ROW($2:$10000)-1)),0),\"\")","v":40},{"$f":"IFERROR(OFFSET(Stock!$F$1,SUMPRODUCT((Stock!$B$2:$B$10000=K$1)*(Stock!$A$2:$A$10000=$A2)*(ROW($2:$10000)-1)),0),\"\")","v":40},{"$f":"IFERROR(OFFSET(Stock!$F$1,SUMPRODUCT((Stock!$B$2:$B$10000=L$1)*(Stock!$A$2:$A$10000=$A2)*(ROW($2:$10000)-1)),0),\"\")","v":40}]
["F02",{"$f":"IFERROR(OFFSET(Stock!$F$1,SUMPRODUCT((Stock!$B$2:$B$10000=B$1)*(Stock!$A$2:$A$10000=$A3)*(ROW($2:$10000)-1)),0),\"\")","v":30},{"$f":"IFERROR(OFFSET(Stock!$F$1,SUMPRODUCT((Stock!$B$2:$B$10000=C$1)*(Stock!$A$2:$A$10000=$A3)*(ROW($2:$10000)-1)),0),\"\")","v":30},{"$f":"IFERROR(OFFSET(Stock!$F$1,SUMPRODUCT((Stock!$B$2:$B$10000=D$1)*(Stock!$A$2:$A$10000=$A3)*(ROW($2:$10000)-1)),0),\"\")","v":30},{"$f":"IFERROR(OFFSET(Stock!$F$1,SUMPRODUCT((Stock!$B$2:$B$10000=E$1)*(Stock!$A$2:$A$10000=$A3)*(ROW($2:$10000)-1)),0),\"\")","v":30},{"$f":"IFERROR(OFFSET(Stock!$F$1,SUMPRODUCT((Stock!$B$2:$B$10000=F$1)*(Stock!$A$2:$A$10000=$A3)*(ROW($2:$10000)-1)),0),\"\")","v":30},{"$f":"IFERROR(OFFSET(Stock!$F$1,SUMPRODUCT((Stock!$B$2:$B$10000=G$1)*(Stock!$A$2:$A$10000=$A3)*(ROW($2:$10000)-1)),0),\"\")","v":30},{"$f":"IFERROR(OFFSET(Stock!$F$1,SUMPRODUCT((Stock!$B$2:$B$10000=H$1)*(Stock!$A$2:$A$10000=$A3)*(ROW($2:$10000)-1)),0),\"\")","v":30},{"$f":"IFERROR(OFFSET(Stock!$F$1,SUMPRODUCT((Stock!$B$2:$B$10000=I$1)*(Stock!$A$2:$A$10000=$A3)*(ROW($2:$10000)-1)),0),\"\")","v":30},{"$f":"IFERROR(OFFSET(Stock!$F$1,SUMPRODUCT((Stock!$B$2:$B$10000=J$1)*(Stock!$A$2:$A$10000=$A3)*(ROW($2:$10000)-1)),0),\"\")","v":30},{"$f":"IFERROR(OFFSET(Stock!$F$1,SUMPRODUCT((Stock!$B$2:$B$10000=K$1)*(Stock!$A$2:$A$10000=$A3)*(ROW($2:$10000)-1)),0),\"\")","v":30},{"$f":"IFERROR(OFFSET(Stock!$F$1,SUMPRODUCT((Stock!$B$2:$B$10000=L$1)*(Stock!$A$2:$A$10000=$A3)*(ROW($2:$10000)-1)),0),\"\")","v":30}]
["CMK",{"$f":"IFERROR(OFFSET(Stock!$F$1,SUMPRODUCT((Stock!$B$2:$B$10000=B$1)*(Stock!$A$2:$A$10000=$A4)*(ROW($2:$10000)-1)),0),\"\")","v":45},{"$f":"IFERROR(OFFSET(Stock!$F$1,SUMPRODUCT((Stock!$B$2:$B$10000=C$1)*(Stock!$A$2:$A$10000=$A4)*(ROW($2:$10000)-1)),0),\"\")","v":45},{"$f":"IFERROR(OFFSET(Stock!$F$1,SUMPRODUCT((Stock!$B$2:$B$10000=D$1)*(Stock!$A$2:$A$10000=$A4)*(ROW($2:$10000)-1)),0),\"\")","v":45},{"$f":"IFERROR(OFFSET(Stock!$F$1,SUMPRODUCT((Stock!$B$2:$B$10000=E$1)*(Stock!$A$2:$A$10000=$A4)*(ROW($2:$10000)-1)),0),\"\")","v":45},{"$f":"IFERROR(OFFSET(Stock!$F$1,SUMPRODUCT((Stock!$B$2:$B$10000=F$1)*(Stock!$A$2:$A$10000=$A4)*(ROW($2:$10000)-1)),0),\"\")","v":45},{"$f":"IFERROR(OFFSET(Stock!$F$1,SUMPRODUCT((Stock!$B$2:$B$10000=G$1)*(Stock!$A$2:$A$10000=$A4)*(ROW($2:$10000)-1)),0),\"\")","v":45},{"$f":"IFERROR(OFFSET(Stock!$F$1,SUMPRODUCT((Stock!$B$2:$B$10000=H$1)*(Stock!$A$2:$A$10000=$A4)*(ROW($2:$10000)-1)),0),\"\")","v":45},{"$f":"IFERROR(OFFSET(Stock!$F$1,SUMPRODUCT((Stock!$B$2:$B$10000=I$1)*(Stock!$A$2:$A$10000=$A4)*(ROW($2:$10000)-1)),0),\"\")","v":45},{"$f":"IFERROR(OFFSET(Stock!$F$1,SUMPRODUCT((Stock!$B$2:$B$10000=J$1)*(Stock!$A$2:$A$10000=$A4)*(ROW($2:$10000)-1)),0),\"\")","v":45},{"$f":"IFERROR(OFFSET(Stock!$F$1,SUMPRODUCT((Stock!$B$2:$B$10000=K$1)*(Stock!$A$2:$A$10000=$A4)*(ROW($2:$10000)-1)),0),\"\")","v":45},{"$f":"IFERROR(OFFSET(Stock!$F$1,SUMPRODUCT((Stock!$B$2:$B$10000=L$1)*(Stock!$A$2:$A$10000=$A4)*(ROW($2:$10000)-1)),0),\"\")","v":45}]
["ACC",{"$f":"IFERROR(OFFSET(Stock!$F$1,SUMPRODUCT((Stock!$B$2:$B$10000=B$1)*(Stock!$A$2:$A$10000=$A5)*(ROW($2:$10000)-1)),0),\"\")","v":15},{"$f":"IFERROR(OFFSET(Stock!$F$1,SUMPRODUCT((Stock!$B$2:$B$10000=C$1)*(Stock!$A$2:$A$10000=$A5)*(ROW($2:$10000)-1)),0),\"\")","v":15},{"$f":"IFERROR(OFFSET(Stock!$F$1,SUMPRODUCT((Stock!$B$2:$B$10000=D$1)*(Stock!$A$2:$A$10000=$A5)*(ROW($2:$10000)-1)),0),\"\")","v":15},{"$f":"IFERROR(OFFSET(Stock!$F$1,SUMPRODUCT((Stock!$B$2:$B$10000=E$1)*(Stock!$A$2:$A$10000=$A5)*(ROW($2:$10000)-1)),0),\"\")","v":15},{"$f":"IFERROR(OFFSET(Stock!$F$1,SUMPRODUCT((Stock!$B$2:$B$10000=F$1)*(Stock!$A$2:$A$10000=$A5)*(ROW($2:$10000)-1)),0),\"\")","v":15},{"$f":"IFERROR(OFFSET(Stock!$F$1,SUMPRODUCT((Stock!$B$2:$B$10000=G$1)*(Stock!$A$2:$A$10000=$A5)*(ROW($2:$10000)-1)),0),\"\")","v":15},{"$f":"IFERROR(OFFSET(Stock!$F$1,SUMPRODUCT((Stock!$B$2:$B$10000=H$1)*(Stock!$A$2:$A$10000=$A5)*(ROW($2:$10000)-1)),0),\"\")","v":15},{"$f":"IFERROR(OFFSET(Stock!$F$1,SUMPRODUCT((Stock!$B$2:$B$10000=I$1)*(Stock!$A$2:$A$10000=$A5)*(ROW($2:$10000)-1)),0),\"\")","v":15},{"$f":"IFERROR(OFFSET(Stock!$F$1,SUMPRODUCT((Stock!$B$2:$B$10000=J$1)*(Stock!$A$2:$A$10000=$A5)*(ROW($2:$10000)-1)),0),\"\")","v":15},{"$f":"IFERROR(OFFSET(Stock!$F$1,SUMPRODUCT((Stock!$B$2:$B$10000=K$1)*(Stock!$A$2:$A$10000=$A5)*(ROW($2:$10000)-1)),0),\"\")","v":15},{"$f":"IFERROR(OFFSET(Stock!$F$1,SUMPRODUCT((Stock!$B$2:$B$10000=L$1)*(Stock!$A$2:$A$10000=$A5)*(ROW($2:$10000)-1)),0),\"\")","v":15}]
["CS2T",{"$f":"IFERROR(OFFSET(Stock!$F$1,SUMPRODUCT((Stock!$B$2:$B$10000=B$1)*(Stock!$A$2:$A$10000=$A6)*(ROW($2:$10000)-1)),0),\"\")","v":90},{"$f":"IFERROR(OFFSET(Stock!$F$1,SUMPRODUCT((Stock!$B$2:$B$10000=C$1)*(Stock!$A$2:$A$10000=$A6)*(ROW($2:$10000)-1)),0),\"\")","v":90},{"$f":"IFERROR(OFFSET(Stock!$F$1,SUMPRODUCT((Stock!$B$2:$B$10000=D$1)*(Stock!$A$2:$A$10000=$A6)*(ROW($2:$10000)-1)),0),\"\")","v":90},{"$f":"IFERROR(OFFSET(Stock!$F$1,SUMPRODUCT((Stock!$B$2:$B$10000=E$1)*(Stock!$A$2:$A$10000=$A6)*(ROW($2:$10000)-1)),0),\"\")","v":90},{"$f":"IFERROR(OFFSET(Stock!$F$1,SUMPRODUCT((Stock!$B$2:$B$10000=F$1)*(Stock!$A$2:$A$10000=$A6)*(ROW($2:$10000)-1)),0),\"\")","v":90},{"$f":"IFERROR(OFFSET(Stock!$F$1,SUMPRODUCT((Stock!$B$2:$B$10000=G$1)*(Stock!$A$2:$A$10000=$A6)*(ROW($2:$10000)-1)),0),\"\")","v":90},{"$f":"IFERROR(OFFSET(Stock!$F$1,SUMPRODUCT((Stock!$B$2:$B$10000=H$1)*(Stock!$A$2:$A$10000=$A6)*(ROW($2:$10000)-1)),0),\"\")","v":90},{"$f":"IFERROR(OFFSET(Stock!$F$1,SUMPRODUCT((Stock!$B$2:$B$10000=I$1)*(Stock!$A$2:$A$10000=$A6)*(ROW($2:$10000)-1)),0),\"\")","v":90},{"$f":"IFERROR(OFFSET(Stock!$F$1,SUMPRODUCT((Stock!$B$2:$B$10000=J$1)*(Stock!$A$2:$A$10000=$A6)*(ROW($2:$10000)-1)),0),\"\")","v":90},{"$f":"IFERROR(OFFSET(Stock!$F$1,SUMPRODUCT((Stock!$B$2:$B$10000=K$1)*(Stock!$A$2:$A$10000=$A6)*(ROW($2:$10000)-1)),0),\"\")","v":90},{"$f":"IFERROR(OFFSET(Stock!$F$1,SUMPRODUCT((Stock!$B$2:$B$10000=L$1)*(Stock!$A$2:$A$10000=$A6)*(ROW($2:$10000)-1)),0),\"\")","v":90}]
["ACC1",{"$f":"IFERROR(OFFSET(Stock!$F$1,SUMPRODUCT((Stock!$B$2:$B$10000=B$1)*(Stock!$A$2:$A$10000=$A7)*(ROW($2:$10000)-1)),0),\"\")","v":91},{"$f":"IFERROR(OFFSET(Stock!$F$1,SUMPRODUCT((Stock!$B$2:$B$10000=C$1)*(Stock!$A$2:$A$10000=$A7)*(ROW($2:$10000)-1)),0),\"\")","v":92},{"$f":"IFERROR(OFFSET(Stock!$F$1,SUMPRODUCT((Stock!$B$2:$B$10000=D$1)*(Stock!$A$2:$A$10000=$A7)*(ROW($2:$10000)-1)),0),\"\")","v":93},{"$f":"IFERROR(OFFSET(Stock!$F$1,SUMPRODUCT((Stock!$B$2:$B$10000=E$1)*(Stock!$A$2:$A$10000=$A7)*(ROW($2:$10000)-1)),0),\"\")","v":94},{"$f":"IFERROR(OFFSET(Stock!$F$1,SUMPRODUCT((Stock!$B$2:$B$10000=F$1)*(Stock!$A$2:$A$10000=$A7)*(ROW($2:$10000)-1)),0),\"\")","v":95},{"$f":"IFERROR(OFFSET(Stock!$F$1,SUMPRODUCT((Stock!$B$2:$B$10000=G$1)*(Stock!$A$2:$A$10000=$A7)*(ROW($2:$10000)-1)),0),\"\")","v":96},{"$f":"IFERROR(OFFSET(Stock!$F$1,SUMPRODUCT((Stock!$B$2:$B$10000=H$1)*(Stock!$A$2:$A$10000=$A7)*(ROW($2:$10000)-1)),0),\"\")","v":97},{"$f":"IFERROR(OFFSET(Stock!$F$1,SUMPRODUCT((Stock!$B$2:$B$10000=I$1)*(Stock!$A$2:$A$10000=$A7)*(ROW($2:$10000)-1)),0),\"\")","v":98},{"$f":"IFERROR(OFFSET(Stock!$F$1,SUMPRODUCT((Stock!$B$2:$B$10000=J$1)*(Stock!$A$2:$A$10000=$A7)*(ROW($2:$10000)-1)),0),\"\")","v":99},{"$f":"IFERROR(OFFSET(Stock!$F$1,SUMPRODUCT((Stock!$B$2:$B$10000=K$1)*(Stock!$A$2:$A$10000=$A7)*(ROW($2:$10000)-1)),0),\"\")","v":100},{"$f":"IFERROR(OFFSET(Stock!$F$1,SUMPRODUCT((Stock!$B$2:$B$10000=L$1)*(Stock!$A$2:$A$10000=$A7)*(ROW($2:$10000)-1)),0),\"\")","v":101}]
["ACC2",{"$f":"IFERROR(OFFSET(Stock!$F$1,SUMPRODUCT((Stock!$B$2:$B$10000=B$1)*(Stock!$A$2:$A$10000=$A8)*(ROW($2:$10000)-1)),0),\"\")","v":102},{"$f":"IFERROR(OFFSET(Stock!$F$1,SUMPRODUCT((Stock!$B$2:$B$10000=C$1)*(Stock!$A$2:$A$10000=$A8)*(ROW($2:$10000)-1)),0),\"\")","v":103},{"$f":"IFERROR(OFFSET(Stock!$F$1,SUMPRODUCT((Stock!$B$2:$B$10000=D$1)*(Stock!$A$2:$A$10000=$A8)*(ROW($2:$10000)-1)),0),\"\")","v":104},{"$f":"IFERROR(OFFSET(Stock!$F$1,SUMPRODUCT((Stock!$B$2:$B$10000=E$1)*(Stock!$A$2:$A$10000=$A8)*(ROW($2:$10000)-1)),0),\"\")","v":105},{"$f":"IFERROR(OFFSET(Stock!$F$1,SUMPRODUCT((Stock!$B$2:$B$10000=F$1)*(Stock!$A$2:$A$10000=$A8)*(ROW($2:$10000)-1)),0),\"\")","v":106},{"$f":"IFERROR(OFFSET(Stock!$F$1,SUMPRODUCT((Stock!$B$2:$B$10000=G$1)*(Stock!$A$2:$A$10000=$A8)*(ROW($2:$10000)-1)),0),\"\")","v":107},{"$f":"IFERROR(OFFSET(Stock!$F$1,SUMPRODUCT((Stock!$B$2:$B$10000=H$1)*(Stock!$A$2:$A$10000=$A8)*(ROW($2:$10000)-1)),0),\"\")","v":108},{"$f":"IFERROR(OFFSET(Stock!$F$1,SUMPRODUCT((Stock!$B$2:$B$10000=I$1)*(Stock!$A$2:$A$10000=$A8)*(ROW($2:$10000)-1)),0),\"\")","v":109},{"$f":"IFERROR(OFFSET(Stock!$F$1,SUMPRODUCT((Stock!$B$2:$B$10000=J$1)*(Stock!$A$2:$A$10000=$A8)*(ROW($2:$10000)-1)),0),\"\")","v":110},{"$f":"IFERROR(OFFSET(Stock!$F$1,SUMPRODUCT((Stock!$B$2:$B$10000=K$1)*(Stock!$A$2:$A$10000=$A8)*(ROW($2:$10000)-1)),0),\"\")","v":111},{"$f":"IFERROR(OFFSET(Stock!$F$1,SUMPRODUCT((Stock!$B$2:$B$10000=L$1)*(Stock!$A$2:$A$10000=$A8)*(ROW($2:$10000)-1)),0),\"\")","v":112}]
["ACC3",{"$f":"IFERROR(OFFSET(Stock!$F$1,SUMPRODUCT((Stock!$B$2:$B$10000=B$1)*(Stock!$A$2:$A$10000=$A9)*(ROW($2:$10000)-1)),0),\"\")","v":113},{"$f":"IFERROR(OFFSET(Stock!$F$1,SUMPRODUCT((Stock!$B$2:$B$10000=C$1)*(Stock!$A$2:$A$10000=$A9)*(ROW($2:$10000)-1)),0),\"\")","v":114},{"$f":"IFERROR(OFFSET(Stock!$F$1,SUMPRODUCT((Stock!$B$2:$B$10000=D$1)*(Stock!$A$2:$A$10000=$A9)*(ROW($2:$10000)-1)),0),\"\")","v":115},{"$f":"IFERROR(OFFSET(Stock!$F$1,SUMPRODUCT((Stock!$B$2:$B$10000=E$1)*(Stock!$A$2:$A$10000=$A9)*(ROW($2:$10000)-1)),0),\"\")","v":116},{"$f":"IFERROR(OFFSET(Stock!$F$1,SUMPRODUCT((Stock!$B$2:$B$10000=F$1)*(Stock!$A$2:$A$10000=$A9)*(ROW($2:$10000)-1)),0),\"\")","v":117},{"$f":"IFERROR(OFFSET(Stock!$F$1,SUMPRODUCT((Stock!$B$2:$B$10000=G$1)*(Stock!$A$2:$A$10000=$A9)*(ROW($2:$10000)-1)),0),\"\")","v":118},{"$f":"IFERROR(OFFSET(Stock!$F$1,SUMPRODUCT((Stock!$B$2:$B$10000=H$1)*(Stock!$A$2:$A$10000=$A9)*(ROW($2:$10000)-1)),0),\"\")","v":119},{"$f":"IFERROR(OFFSET(Stock!$F$1,SUMPRODUCT((Stock!$B$2:$B$10000=I$1)*(Stock!$A$2:$A$10000=$A9)*(ROW($2:$10000)-1)),0),\"\")","v":120},{"$f":"IFERROR(OFFSET(Stock!$F$1,SUMPRODUCT((Stock!$B$2:$B$10000=J$1)*(Stock!$A$2:$A$10000=$A9)*(ROW($2:$10000)-1)),0),\"\")","v":121},{"$f":"IFERROR(OFFSET(Stock!$F$1,SUMPRODUCT((Stock!$B$2:$B$10000=K$1)*(Stock!$A$2:$A$10000=$A9)*(ROW($2:$10000)-1)),0),\"\")","v":122},{"$f":"IFERROR(OFFSET(Stock!$F$1,SUMPRODUCT((Stock!$B$2:$B$10000=L$1)*(Stock!$A$2:$A$10000=$A9)*(ROW($2:$10000)-1)),0),\"\")","v":123}]
["ACC4",{"$f":"IFERROR(OFFSET(Stock!$F$1,SUMPRODUCT((Stock!$B$2:$B$10000=B$1)*(Stock!$A$2:$A$10000=$A10)*(ROW($2:$10000)-1)),0),\"\")","v":124},{"$f":"IFERROR(OFFSET(Stock!$F$1,SUMPRODUCT((Stock!$B$2:$B$10000=C$1)*(Stock!$A$2:$A$10000=$A10)*(ROW($2:$10000)-1)),0),\"\")","v":125},{"$f":"IFERROR(OFFSET(Stock!$F$1,SUMPRODUCT((Stock!$B$2:$B$10000=D$1)*(Stock!$A$2:$A$10000=$A10)*(ROW($2:$10000)-1)),0),\"\")","v":126},{"$f":"IFERROR(OFFSET(Stock!$F$1,SUMPRODUCT((Stock!$B$2:$B$10000=E$1)*(Stock!$A$2:$A$10000=$A10)*(ROW($2:$10000)-1)),0),\"\")","v":127},{"$f":"IFERROR(OFFSET(Stock!$F$1,SUMPRODUCT((Stock!$B$2:$B$10000=F$1)*(Stock!$A$2:$A$10000=$A10)*(ROW($2:$10000)-1)),0),\"\")","v":128},{"$f":"IFERROR(OFFSET(Stock!$F$1,SUMPRODUCT((Stock!$B$2:$B$10000=G$1)*(Stock!$A$2:$A$10000=$A10)*(ROW($2:$10000)-1)),0),\"\")","v":129},{"$f":"IFERROR(OFFSET(Stock!$F$1,SUMPRODUCT((Stock!$B$2:$B$10000=H$1)*(Stock!$A$2:$A$10000=$A10)*(ROW($2:$10000)-1)),0),\"\")","v":130},{"$f":"IFERROR(OFFSET(Stock!$F$1,SUMPRODUCT((Stock!$B$2:$B$10000=I$1)*(Stock!$A$2:$A$10000=$A10)*(ROW($2:$10000)-1)),0),\"\")","v":131},{"$f":"IFERROR(OFFSET(Stock!$F$1,SUMPRODUCT((Stock!$B$2:$B$10000=J$1)*(Stock!$A$2:$A$10000=$A10)*(ROW($2:$10000)-1)),0),\"\")","v":132},{"$f":"IFERROR(OFFSET(Stock!$F$1,SUMPRODUCT((Stock!$B$2:$B$10000=K$1)*(Stock!$A$2:$A$10000=$A10)*(ROW($2:$10000)-1)),0),\"\")","v":133},{"$f":"IFERROR(OFFSET(Stock!$F$1,SUMPRODUCT((Stock!$B$2:$B$10000=L$1)*(Stock!$A$2:$A$10000=$A10)*(ROW($2:$10000)-1)),0),\"\")","v":134}]
["CMK1",{"$f":"IFERROR(OFFSET(Stock!$F$1,SUMPRODUCT((Stock!$B$2:$B$10000=B$1)*(Stock!$A$2:$A$10000=$A11)*(ROW($2:$10000)-1)),0),\"\")","v":135},{"$f":"IFERROR(OFFSET(Stock!$F$1,SUMPRODUCT((Stock!$B$2:$B$10000=C$1)*(Stock!$A$2:$A$10000=$A11)*(ROW($2:$10000)-1)),0),\"\")","v":136},{"$f":"IFERROR(OFFSET(Stock!$F$1,SUMPRODUCT((Stock!$B$2:$B$10000=D$1)*(Stock!$A$2:$A$10000=$A11)*(ROW($2:$10000)-1)),0),\"\")","v":137},{"$f":"IFERROR(OFFSET(Stock!$F$1,SUMPRODUCT((Stock!$B$2:$B$10000=E$1)*(Stock!$A$2:$A$10000=$A11)*(ROW($2:$10000)-1)),0),\"\")","v":138},{"$f":"IFERROR(OFFSET(Stock!$F$1,SUMPRODUCT((Stock!$B$2:$B$10000=F$1)*(Stock!$A$2:$A$10000=$A11)*(ROW($2:$10000)-1)),0),\"\")","v":139},{"$f":"IFERROR(OFFSET(Stock!$F$1,SUMPRODUCT((Stock!$B$2:$B$10000=G$1)*(Stock!$A$2:$A$10000=$A11)*(ROW($2:$10000)-1)),0),\"\")","v":140},{"$f":"IFERROR(OFFSET(Stock!$F$1,SUMPRODUCT((Stock!$B$2:$B$10000=H$1)*(Stock!$A$2:$A$10000=$A11)*(ROW($2:$10000)-1)),0),\"\")","v":141},{"$f":"IFERROR(OFFSET(Stock!$F$1,SUMPRODUCT((Stock!$B$2:$B$10000=I$1)*(Stock!$A$2:$A$10000=$A11)*(ROW($2:$10000)-1)),0),\"\")","v":142},{"$f":"IFERROR(OFFSET(Stock!$F$1,SUMPRODUCT((Stock!$B$2:$B$10000=J$1)*(Stock!$A$2:$A$10000=$A11)*(ROW($2:$10000)-1)),0),\"\")","v":143},{"$f":"IFERROR(OFFSET(Stock!$F$1,SUMPRODUCT((Stock!$B$2:$B$10000=K$1)*(Stock!$A$2:$A$10000=$A11)*(ROW($2:$10000)-1)),0),\"\")","v":144},{"$f":"IFERROR(OFFSET(Stock!$F$1,SUMPRODUCT((Stock!$B$2:$B$10000=L$1)*(Stock!$A$2:$A$10000=$A11)*(ROW($2:$10000)-1)),0),\"\")","v":145}]
["CMK2",{"$f":"IFERROR(OFFSET(Stock!$F$1,SUMPRODUCT((Stock!$B$2:$B$10000=B$1)*(Stock!$A$2:$A$10000=$A12)*(ROW($2:$10000)-1)),0),\"\")","v":146},{"$f":"IFERROR(OFFSET(Stock!$F$1,SUMPRODUCT((Stock!$B$2:$B$10000=C$1)*(Stock!$A$2:$A$10000=$A12)*(ROW($2:$10000)-1)),0),\"\")","v":147},{"$f":"IFERROR(OFFSET(Stock!$F$1,SUMPRODUCT((Stock!$B$2:$B$10000=D$1)*(Stock!$A$2:$A$10000=$A12)*(ROW($2:$10000)-1)),0),\"\")","v":148},{"$f":"IFERROR(OFFSET(Stock!$F$1,SUMPRODUCT((Stock!$B$2:$B$10000=E$1)*(Stock!$A$2:$A$10000=$A12)*(ROW($2:$10000)-1)),0),\"\")","v":149},{"$f":"IFERROR(OFFSET(Stock!$F$1,SUMPRODUCT((Stock!$B$2:$B$10000=F$1)*(Stock!$A$2:$A$10000=$A12)*(ROW($2:$10000)-1)),0),\"\")","v":150},{"$f":"IFERROR(OFFSET(Stock!$F$1,SUMPRODUCT((Stock!$B$2:$B$10000=G$1)*(Stock!$A$2:$A$10000=$A12)*(ROW($2:$10000)-1)),0),\"\")","v":151},{"$f":"IFERROR(OFFSET(Stock!$F$1,SUMPRODUCT((Stock!$B$2:$B$10000=H$1)*(Stock!$A$2:$A$10000=$A12)*(ROW($2:$10000)-1)),0),\"\")","v":152},{"$f":"IFERROR(OFFSET(Stock!$F$1,SUMPRODUCT((Stock!$B$2:$B$10000=I$1)*(Stock!$A$2:$A$10000=$A12)*(ROW($2:$10000)-1)),0),\"\")","v":153},{"$f":"IFERROR(OFFSET(Stock!$F$1,SUMPRODUCT((Stock!$B$2:$B$10000=J$1)*(Stock!$A$2:$A$10000=$A12)*(ROW($2:$10000)-1)),0),\"\")","v":154},{"$f":"IFERROR(OFFSET(Stock!$F$1,SUMPRODUCT((Stock!$B$2:$B$10000=K$1)*(Stock!$A$2:$A$10000=$A12)*(ROW($2:$10000)-1)),0),\"\")","v":155},{"$f":"IFERROR(OFFSET(Stock!$F$1,SUMPRODUCT((Stock!$B$2:$B$10000=L$1)*(Stock!$A$2:$A$10000=$A12)*(ROW($2:$10000)-1)),0),\"\")","v":156}]
["CMK3",{"$f":"IFERROR(OFFSET(Stock!$F$1,SUMPRODUCT((Stock!$B$2:$B$10000=B$1)*(Stock!$A$2:$A$10000=$A13)*(ROW($2:$10000)-1)),0),\"\")","v":157},{"$f":"IFERROR(OFFSET(Stock!$F$1,SUMPRODUCT((Stock!$B$2:$B$10000=C$1)*(Stock!$A$2:$A$10000=$A13)*(ROW($2:$10000)-1)),0),\"\")","v":158},{"$f":"IFERROR(OFFSET(Stock!$F$1,SUMPRODUCT((Stock!$B$2:$B$10000=D$1)*(Stock!$A$2:$A$10000=$A13)*(ROW($2:$10000)-1)),0),\"\")","v":159},{"$f":"IFERROR(OFFSET(Stock!$F$1,SUMPRODUCT((Stock!$B$2:$B$10000=E$1)*(Stock!$A$2:$A$10000=$A13)*(ROW($2:$10000)-1)),0),\"\")","v":160},{"$f":"IFERROR(OFFSET(Stock!$F$1,SUMPRODUCT((Stock!$B$2:$B$10000=F$1)*(Stock!$A$2:$A$10000=$A13)*(ROW($2:$10000)-1)),0),\"\")","v":161},{"$f":"IFERROR(OFFSET(Stock!$F$1,SUMPRODUCT((Stock!$B$2:$B$10000=G$1)*(Stock!$A$2:$A$10000=$A13)*(ROW($2:$10000)-1)),0),\"\")","v":162},{"$f":"IFERROR(OFFSET(Stock!$F$1,SUMPRODUCT((Stock!$B$2:$B$10000=H$1)*(Stock!$A$2:$A$10000=$A13)*(ROW($2:$10000)-1)),0),\"\")","v":163},{"$f":"IFERROR(OFFSET(Stock!$F$1,SUMPRODUCT((Stock!$B$2:$B$10000=I$1)*(Stock!$A$2:$A$10000=$A13)*(ROW($2:$10000)-1)),0),\"\")","v":164},{"$f":"IFERROR(OFFSET(Stock!$F$1,SUMPRODUCT((Stock!$B$2:$B$10000=J$1)*(Stock!$A$2:$A$10000=$A13)*(ROW($2:$10000)-1)),0),\"\")","v":165},{"$f":"IFERROR(OFFSET(Stock!$F$1,SUMPRODUCT((Stock!$B$2:$B$10000=K$1)*(Stock!$A$2:$A$10000=$A13)*(ROW($2:$10000)-1)),0),\"\")","v":166},{"$f":"IFERROR(OFFSET(Stock!$F$1,SUMPRODUCT((Stock!$B$2:$B$10000=L$1)*(Stock!$A$2:$A$10000=$A13)*(ROW($2:$10000)-1)),0),\"\")","v":167}]

{"sheet":"Stock","index":1,"n_rows":2861,"n_cols":7,"rows_kept":2861,"cut":false,"hidden":false,"merged":[]}
["Article","Couleur","Stock Initial","Entrée","Sortie","Stock","Stock min"]
["FM04","Rouge",40,null,null,{"$f":"C2+D2-E2","v":40},10]
["FM04","Noir",40,null,null,{"$f":"C3+D3-E3","v":40},10]
["FM04","Vert",40,null,null,40,10]
["FM04","Bleu",40,null,null,40,10]
["FM04","Grais",40,null,null,40,10]
["FM04","Marron",40,null,null,40,10]
["FM04","Orange",40,null,null,40,10]
["FM04","Argent",40,null,null,40,10]
["FM04","Violet",40,null,null,40,10]
["FM04","Rose",40,null,null,40,10]
["FM04","Jaune",40,null,null,40,10]
["F02","Rouge",30,null,null,30,10]
["F02","Noir",30,null,null,30,10]
["F02","Vert",30,null,null,30,10]
["F02","Bleu",30,null,null,30,10]
["F02","Grais",30,null,null,30,10]
["F02","Marron",30,null,null,30,10]
["F02","Orange",30,null,null,30,10]
["F02","Argent",30,null,null,30,10]
["F02","Violet",30,null,null,30,10]
["F02","Rose",30,null,null,30,10]
["F02","Jaune",30,null,null,30,10]
["CMK","Rouge",45,null,null,45,10]
["CMK","Noir",45,null,null,45,10]
["CMK","Vert",45,null,null,45,10]
["CMK","Bleu",45,null,null,45,10]
["CMK","Grais",45,null,null,45,10]
["CMK","Marron",45,null,null,45,10]
["CMK","Orange",45,null,null,45,10]
["CMK","Argent",45,null,null,45,10]
["CMK","Violet",45,null,null,45,10]
["CMK","Rose",45,null,null,45,10]
["CMK","Jaune",45,null,null,45,10]
["ACC","Rouge",15,null,null,15,10]
["ACC","Noir",15,null,null,15,10]
["ACC","Vert",15,null,null,15,10]
["ACC","Bleu",15,null,null,15,10]
["ACC","Grais",15,null,null,15,10]
["ACC","Marron",15,null,null,15,10]
["ACC","Orange",15,null,null,15,10]
["ACC","Argent",15,null,null,15,10]
["ACC","Violet",15,null,null,15,10]
["ACC","Rose",15,null,null,15,10]
["ACC","Jaune",15,null,null,15,10]
["CS2T","Rouge",90,null,null,90,10]
["CS2T","Noir",90,null,null,90,10]
["CS2T","Vert",90,null,null,90,10]
["CS2T","Bleu",90,null,null,90,10]
["CS2T","Grais",90,null,null,90,10]
["CS2T","Marron",90,null,null,90,10]
["CS2T","Orange",90,null,null,90,10]
["CS2T","Argent",90,null,null,90,10]
["CS2T","Violet",90,null,null,90,10]
["CS2T","Rose",90,null,null,90,10]
["CS2T","Jaune",90,null,null,90,10]
["ACC1","Rouge",91,null,null,91]
["ACC1","Noir",92,null,null,92]
["ACC1","Vert",93,null,null,93]
["ACC1","Bleu",94,null,null,94]
["ACC1","Grais",95,null,null,95]
["ACC1","Marron",96,null,null,96]
["ACC1","Orange",97,null,null,97]
["ACC1","Argent",98,null,null,98]
["ACC1","Violet",99,null,null,99]
["ACC1","Rose",100,null,null,100]
["ACC1","Jaune",101,null,null,{"$f":"C67+D67-E67","v":101}]
["ACC2","Rouge",102,null,null,102]
["ACC2","Noir",103,null,null,103]
["ACC2","Vert",104,null,null,104]
["ACC2","Bleu",105,null,null,105]
["ACC2","Grais",106,null,null,106]
["ACC2","Marron",107,null,null,107]
["ACC2","Orange",108,null,null,108]
["ACC2","Argent",109,null,null,109]
["ACC2","Violet",110,null,null,110]
["ACC2","Rose",111,null,null,111]
["ACC2","Jaune",112,null,null,112]
["ACC3","Rouge",113,null,null,113]
["ACC3","Noir",114,null,null,114]
["ACC3","Vert",115,null,null,115]
["ACC3","Bleu",116,null,null,116]
["ACC3","Grais",117,null,null,117]
["ACC3","Marron",118,null,null,118]
["ACC3","Orange",119,null,null,119]
["ACC3","Argent",120,null,null,120]
["ACC3","Violet",121,null,null,121]
["ACC3","Rose",122,null,null,122]
["ACC3","Jaune",123,null,null,123]
["ACC4","Rouge",124,null,null,124]
["ACC4","Noir",125,null,null,125]
["ACC4","Vert",126,null,null,126]
["ACC4","Bleu",127,null,null,127]
["ACC4","Grais",128,null,null,128]
["ACC4","Marron",129,null,null,129]
["ACC4","Orange",130,null,null,130]
["ACC4","Argent",131,null,null,131]
["ACC4","Violet",132,null,null,132]
["ACC4","Rose",133,null,null,133]
["ACC4","Jaune",134,null,null,134]
["CMK1","Rouge",135,null,null,135]
["CMK1","Noir",136,null,null,136]
["CMK1","Vert",137,null,null,137]
["CMK1","Bleu",138,null,null,138]
["CMK1","Grais",139,null,null,139]
["CMK1","Marron",140,null,null,140]
["CMK1","Orange",141,null,null,141]
["CMK1","Argent",142,null,null,142]
["CMK1","Violet",143,null,null,143]
["CMK1","Rose",144,null,null,144]
["CMK1","Jaune",145,null,null,145]
["CMK2","Rouge",146,null,null,146]
["CMK2","Noir",147,null,null,147]
["CMK2","Vert",148,null,null,148]
["CMK2","Bleu",149,null,null,149]
["CMK2","Grais",150,null,null,150]
["CMK2","Marron",151,null,null,151]
["CMK2","Orange",152,null,null,152]
["CMK2","Argent",153,null,null,153]
["CMK2","Violet",154,null,null,154]
["CMK2","Rose",155,null,null,155]
["CMK2","Jaune",156,null,null,156]
["CMK3","Rouge",157,null,null,157]
["CMK3","Noir",158,null,null,158]
["CMK3","Vert",159,null,null,159]
["CMK3","Bleu",160,null,null,160]
["CMK3","Grais",161,null,null,161]
["CMK3","Marron",162,null,null,162]
["CMK3","Orange",163,null,null,163]
["CMK3","Argent",164,null,null,164]
["CMK3","Violet",165,null,null,{"$f":"C131+D131-E131","v":165}]
["CMK3","Rose",166,null,null,166]
["CMK3","Jaune",167,null,null,167]
[".","Rouge"]
[".","Noir"]
[".","Vert"]
[".","Bleu"]
[".","Grais"]
[".","Marron"]
[null,"Orange"]
[null,"Argent"]
[null,"Violet"]
[null,"Rose"]
[null,"Jaune"]
[null,"Rouge"]
[null,"Noir"]
[null,"Vert"]
[null,"Bleu"]
[null,"Grais"]
[null,"Marron"]
[null,"Orange"]
[null,"Argent"]
[null,"Violet"]
[null,"Rose"]
[null,"Jaune"]
[null,"Rouge"]
[null,"Noir"]
[null,"Vert"]
[null,"Bleu"]
[null,"Grais"]
[null,"Marron"]
[null,"Orange"]
[null,"Argent"]
[null,"Violet"]
[null,"Rose"]
[null,"Jaune"]
[null,"Rouge"]
[null,"Noir"]
[null,"Vert"]
[null,"Bleu"]
[null,"Grais"]
[null,"Marron"]
[null,"Orange"]
[null,"Argent"]
[null,"Violet"]
[null,"Rose"]
[null,"Jaune"]
[null,"Rouge"]
[null,"Noir"]
[null,"Vert"]
[null,"Bleu"]
[null,"Grais"]
[null,"Marron"]
[null,"Orange"]
[null,"Argent"]
[null,"Violet"]
[null,"Rose"]
[null,"Jaune"]
[null,"Rouge"]
[null,"Noir"]
[null,"Vert"]
[null,"Bleu"]
[null,"Grais"]
[null,"Marron"]
[null,"Orange"]
[null,"Argent"]
[null,"Violet"]
[null,"Rose"]
[null,"Jaune"]
[null,"Rouge"]
[null,"Noir"]
[null,"Vert"]
[null,"Bleu"]
[null,"Grais"]
[null,"Marron"]
[null,"Orange"]
[null,"Argent"]
[null,"Violet"]
[null,"Rose"]
[null,"Jaune"]
[null,"Rouge"]
[null,"Noir"]
[null,"Vert"]
[null,"Bleu"]
[null,"Grais"]
[null,"Marron"]
[null,"Orange"]
[null,"Argent"]
[null,"Violet"]
[null,"Rose"]
[null,"Jaune"]
[null,"Rouge"]
[null,"Noir"]
[null,"Vert"]
[null,"Bleu"]
[null,"Grais"]
[null,"Marron"]
[null,"Orange"]
[null,"Argent"]
[null,"Violet"]
[null,"Rose"]
[null,"Jaune"]
[null,"Rouge"]
[null,"Noir"]
[null,"Vert"]
[null,"Bleu"]
[null,"Grais"]
[null,"Marron"]
[null,"Orange"]
[null,"Argent"]
[null,"Violet"]
[null,"Rose"]
[null,"Jaune"]
[null,"Rouge"]
[null,"Noir"]
[null,"Vert"]
[null,"Bleu"]
[null,"Grais"]
[null,"Marron"]
[null,"Orange"]
[null,"Argent"]
[null,"Violet"]
[null,"Rose"]
[null,"Jaune"]
[null,"Rouge"]
[null,"Noir"]
[null,"Vert"]
[null,"Bleu"]
[null,"Grais"]
[null,"Marron"]
[null,"Orange"]
[null,"Argent"]
[null,"Violet"]
[null,"Rose"]
[null,"Jaune"]
[null,"Rouge"]
[null,"Noir"]
[null,"Vert"]
[null,"Bleu"]
[null,"Grais"]
[null,"Marron"]
[null,"Orange"]
[null,"Argent"]
[null,"Violet"]
[null,"Rose"]
[null,"Jaune"]
[null,"Rouge"]
[null,"Noir"]
[null,"Vert"]
[null,"Bleu"]
[null,"Grais"]
[null,"Marron"]
[null,"Orange"]
[null,"Argent"]
[null,"Violet"]
[null,"Rose"]
[null,"Jaune"]
[null,"Rouge"]
[null,"Noir"]
[null,"Vert"]
[null,"Bleu"]
[null,"Grais"]
[null,"Marron"]
[null,"Orange"]
[null,"Argent"]
[null,"Violet"]
[null,"Rose"]
[null,"Jaune"]
[null,"Rouge"]
[null,"Noir"]
[null,"Vert"]
[null,"Bleu"]
[null,"Grais"]
[null,"Marron"]
[null,"Orange"]
[null,"Argent"]
[null,"Violet"]
[null,"Rose"]
[null,"Jaune"]
[null,"Rouge"]
[null,"Noir"]
[null,"Vert"]
[null,"Bleu"]
[null,"Grais"]
[null,"Marron"]
[null,"Orange"]
[null,"Argent"]
[null,"Violet"]
[null,"Rose"]
[null,"Jaune"]
[null,"Rouge"]
[null,"Noir"]
[null,"Vert"]
[null,"Bleu"]
[null,"Grais"]
[null,"Marron"]
[null,"Orange"]
[null,"Argent"]
[null,"Violet"]
[null,"Rose"]
[null,"Jaune"]
[null,"Rouge"]
[null,"Noir"]
[null,"Vert"]
[null,"Bleu"]
[null,"Grais"]
[null,"Marron"]
[null,"Orange"]
[null,"Argent"]
[null,"Violet"]
[null,"Rose"]
[null,"Jaune"]
[null,"Rouge"]
[null,"Noir"]
[null,"Vert"]
[null,"Bleu"]
[null,"Grais"]
[null,"Marron"]
[null,"Orange"]
[null,"Argent"]
[null,"Violet"]
[null,"Rose"]
[null,"Jaune"]
[null,"Rouge"]
[null,"Noir"]
[null,"Vert"]
[null,"Bleu"]
[null,"Grais"]
[null,"Marron"]
[null,"Orange"]
[null,"Argent"]
[null,"Violet"]
[null,"Rose"]
[null,"Jaune"]
[null,"Rouge"]
[null,"Noir"]
[null,"Vert"]
[null,"Bleu"]
[null,"Grais"]
[null,"Marron"]
[null,"Orange"]
[null,"Argent"]
[null,"Violet"]
[null,"Rose"]
[null,"Jaune"]
[null,"Rouge"]
[null,"Noir"]
[null,"Vert"]
[null,"Bleu"]
[null,"Grais"]
[null,"Marron"]
[null,"Orange"]
[null,"Argent"]
[null,"Violet"]
[null,"Rose"]
[null,"Jaune"]
[null,"Rouge"]
[null,"Noir"]
[null,"Vert"]
[null,"Bleu"]
[null,"Grais"]
[null,"Marron"]
[null,"Orange"]
[null,"Argent"]
[null,"Violet"]
[null,"Rose"]
[null,"Jaune"]
[null,"Rouge"]
[null,"Noir"]
[null,"Vert"]
[null,"Bleu"]
[null,"Grais"]
[null,"Marron"]
[null,"Orange"]
[null,"Argent"]
[null,"Violet"]
[null,"Rose"]
[null,"Jaune"]
[null,"Rouge"]
[null,"Noir"]
[null,"Vert"]
[null,"Bleu"]
[null,"Grais"]
[null,"Marron"]
[null,"Orange"]
[null,"Argent"]
[null,"Violet"]
[null,"Rose"]
[null,"Jaune"]
[null,"Rouge"]
[null,"Noir"]
[null,"Vert"]
[null,"Bleu"]
[null,"Grais"]
[null,"Marron"]
[null,"Orange"]
[null,"Argent"]
[null,"Violet"]
[null,"Rose"]
[null,"Jaune"]
[null,"Rouge"]
[null,"Noir"]
[null,"Vert"]
[null,"Bleu"]
[null,"Grais"]
[null,"Marron"]
[null,"Orange"]
[null,"Argent"]
[null,"Violet"]
[null,"Rose"]
[null,"Jaune"]
[null,"Rouge"]
[null,"Noir"]
[null,"Vert"]
[null,"Bleu"]
[null,"Grais"]
[null,"Marron"]
[null,"Orange"]
[null,"Argent"]
[null,"Violet"]
[null,"Rose"]
[null,"Jaune"]
[null,"Rouge"]
[null,"Noir"]
[null,"Vert"]
[null,"Bleu"]
[null,"Grais"]
[null,"Marron"]
[null,"Orange"]
[null,"Argent"]
[null,"Violet"]
[null,"Rose"]
[null,"Jaune"]
[null,"Rouge"]
[null,"Noir"]
[null,"Vert"]
[null,"Bleu"]
[null,"Grais"]
[null,"Marron"]
[null,"Orange"]
[null,"Argent"]
[null,"Violet"]
[null,"Rose"]
[null,"Jaune"]
[null,"Rouge"]
[null,"Noir"]
[null,"Vert"]
[null,"Bleu"]
[null,"Grais"]
[null,"Marron"]
[null,"Orange"]
[null,"Argent"]
[null,"Violet"]
[null,"Rose"]
[null,"Jaune"]
[null,"Rouge"]
[null,"Noir"]
[null,"Vert"]
[null,"Bleu"]
[null,"Grais"]
[null,"Marron"]
[null,"Orange"]
[null,"Argent"]
[null,"Violet"]
[null,"Rose"]
[null,"Jaune"]
[null,"Rouge"]
[null,"Noir"]
[null,"Vert"]
[null,"Bleu"]
[null,"Grais"]
[null,"Marron"]
[null,"Orange"]
[null,"Argent"]
[null,"Violet"]
[null,"Rose"]
[null,"Jaune"]
[null,"Rouge"]
[null,"Noir"]
[null,"Vert"]
[null,"Bleu"]
[null,"Grais"]
[null,"Marron"]
[null,"Orange"]
[null,"Argent"]
[null,"Violet"]
[null,"Rose"]
[null,"Jaune"]
[null,"Rouge"]
[null,"Noir"]
[null,"Vert"]
[null,"Bleu"]
[null,"Grais"]
[null,"Marron"]
[null,"Orange"]
[null,"Argent"]
[null,"Violet"]
[null,"Rose"]
[null,"Jaune"]
[null,"Rouge"]
[null,"Noir"]
[null,"Vert"]
[null,"Bleu"]
[null,"Grais"]
[null,"Marron"]
[null,"Orange"]
[null,"Argent"]
[null,"Violet"]
[null,"Rose"]
[null,"Jaune"]
[null,"Rouge"]
[null,"Noir"]
[null,"Vert"]
[null,"Bleu"]
[null,"Grais"]
[null,"Marron"]
[null,"Orange"]
[null,"Argent"]
[null,"Violet"]
[null,"Rose"]
[null,"Jaune"]
[null,"Rouge"]
[null,"Noir"]
[null,"Vert"]
[null,"Bleu"]
[null,"Grais"]
[null,"Marron"]
[null,"Orange"]
[null,"Argent"]
[null,"Violet"]
[null,"Rose"]
[null,"Jaune"]
[null,"Rouge"]
[null,"Noir"]
[null,"Vert"]
[null,"Bleu"]
[null,"Grais"]
[null,"Marron"]
[null,"Orange"]
[null,"Argent"]
[null,"Violet"]
[null,"Rose"]
[null,"Jaune"]
[null,"Rouge"]
[null,"Noir"]
[null,"Vert"]
[null,"Bleu"]
[null,"Grais"]
[null,"Marron"]
[null,"Orange"]
[null,"Argent"]
[null,"Violet"]
[null,"Rose"]
[null,"Jaune"]
[null,"Rouge"]
[null,"Noir"]
[null,"Vert"]
[null,"Bleu"]
[null,"Grais"]
[null,"Marron"]
[null,"Orange"]
[null,"Argent"]
[null,"Violet"]
[null,"Rose"]
[null,"Jaune"]
[null,"Rouge"]
[null,"Noir"]
[null,"Vert"]
[null,"Bleu"]
[null,"Grais"]
[null,"Marron"]
[null,"Orange"]
[null,"Argent"]
[null,"Violet"]
[null,"Rose"]
[null,"Jaune"]
[null,"Rouge"]
[null,"Noir"]
[null,"Vert"]
[null,"Bleu"]
[null,"Grais"]
[null,"Marron"]
[null,"Orange"]
[null,"Argent"]
[null,"Violet"]
[null,"Rose"]
[null,"Jaune"]
[null,"Rouge"]
[null,"Noir"]
[null,"Vert"]
[null,"Bleu"]
[null,"Grais"]
[null,"Marron"]
[null,"Orange"]
[null,"Argent"]
[null,"Violet"]
[null,"Rose"]
[null,"Jaune"]
[null,"Rouge"]
[null,"Noir"]
[null,"Vert"]
[null,"Bleu"]
[null,"Grais"]
[null,"Marron"]
[null,"Orange"]
[null,"Argent"]
[null,"Violet"]
[null,"Rose"]
[null,"Jaune"]
[null,"Rouge"]
[null,"Noir"]
[null,"Vert"]
[null,"Bleu"]
[null,"Grais"]
[null,"Marron"]
[null,"Orange"]
[null,"Argent"]
[null,"Violet"]
[null,"Rose"]
[null,"Jaune"]
[null,"Rouge"]
[null,"Noir"]
[null,"Vert"]
[null,"Bleu"]
[null,"Grais"]
[null,"Marron"]
[null,"Orange"]
[null,"Argent"]
[null,"Violet"]
[null,"Rose"]
[null,"Jaune"]
[null,"Rouge"]
[null,"Noir"]
[null,"Vert"]
[null,"Bleu"]
[null,"Grais"]
[null,"Marron"]
[null,"Orange"]
[null,"Argent"]
[null,"Violet"]
[null,"Rose"]
[null,"Jaune"]
[null,"Rouge"]
[null,"Noir"]
[null,"Vert"]
[null,"Bleu"]
[null,"Grais"]
[null,"Marron"]
[null,"Orange"]
[null,"Argent"]
[null,"Violet"]
[null,"Rose"]
[null,"Jaune"]
[null,"Rouge"]
[null,"Noir"]
[null,"Vert"]
[null,"Bleu"]
[null,"Grais"]
[null,"Marron"]
[null,"Orange"]
[null,"Argent"]
[null,"Violet"]
[null,"Rose"]
[null,"Jaune"]
[null,"Rouge"]
[null,"Noir"]
[null,"Vert"]
[null,"Bleu"]
[null,"Grais"]
[null,"Marron"]
[null,"Orange"]
[null,"Argent"]
[null,"Violet"]
[null,"Rose"]
[null,"Jaune"]
[null,"Rouge"]
[null,"Noir"]
[null,"Vert"]
[null,"Bleu"]
[null,"Grais"]
[null,"Marron"]
[null,"Orange"]
[null,"Argent"]
[null,"Violet"]
[null,"Rose"]
[null,"Jaune"]
[null,"Rouge"]
[null,"Noir"]
[null,"Vert"]
[null,"Bleu"]
[null,"Grais"]
[null,"Marron"]
[null,"Orange"]
[null,"Argent"]
[null,"Violet"]
[null,"Rose"]
[null,"Jaune"]
[null,"Rouge"]
[null,"Noir"]
[null,"Vert"]
[null,"Bleu"]
[null,"Grais"]
[null,"Marron"]
[null,"Orange"]
[null,"Argent"]
[null,"Violet"]
[null,"Rose"]
[null,"Jaune"]
[null,"Rouge"]
[null,"Noir"]
[null,"Vert"]
[null,"Bleu"]
[null,"Grais"]
[null,"Marron"]
[null,"Orange"]
[null,"Argent"]
[null,"Violet"]
[null,"Rose"]
[null,"Jaune"]
[null,"Rouge"]
[null,"Noir"]
[null,"Vert"]
[null,"Bleu"]
[null,"Grais"]
[null,"Marron"]
[null,"Orange"]
[null,"Argent"]
[null,"Violet"]
[null,"Rose"]
[null,"Jaune"]
[null,"Rouge"]
[null,"Noir"]
[null,"Vert"]
[null,"Bleu"]
[null,"Grais"]
[null,"Marron"]
[null,"Orange"]
[null,"Argent"]
[null,"Violet"]
[null,"Rose"]
[null,"Jaune"]
[null,"Rouge"]
[null,"Noir"]
[null,"Vert"]
[null,"Bleu"]
[null,"Grais"]
[null,"Marron"]
[null,"Orange"]
[null,"Argent"]
[null,"Violet"]
[null,"Rose"]
[null,"Jaune"]
[null,"Rouge"]
[null,"Noir"]
[null,"Vert"]
[null,"Bleu"]
[null,"Grais"]
[null,"Marron"]
[null,"Orange"]
[null,"Argent"]
[null,"Violet"]
[null,"Rose"]
[null,"Jaune"]
[null,"Rouge"]
[null,"Noir"]
[null,"Vert"]
[null,"Bleu"]
[null,"Grais"]
[null,"Marron"]
[null,"Orange"]
[null,"Argent"]
[null,"Violet"]
[null,"Rose"]
[null,"Jaune"]
[null,"Rouge"]
[null,"Noir"]
[null,"Vert"]
[null,"Bleu"]
[null,"Grais"]
[null,"Marron"]
[null,"Orange"]
[null,"Argent"]
[null,"Violet"]
[null,"Rose"]
[null,"Jaune"]
[null,"Rouge"]
[null,"Noir"]
[null,"Vert"]
[null,"Bleu"]
[null,"Grais"]
[null,"Marron"]
[null,"Orange"]
[null,"Argent"]
[null,"Violet"]
[null,"Rose"]
[null,"Jaune"]
[null,"Rouge"]
[null,"Noir"]
[null,"Vert"]
[null,"Bleu"]
[null,"Grais"]
[null,"Marron"]
[null,"Orange"]
[null,"Argent"]
[null,"Violet"]
[null,"Rose"]
[null,"Jaune"]
[null,"Rouge"]
[null,"Noir"]
[null,"Vert"]
[null,"Bleu"]
[null,"Grais"]
[null,"Marron"]
[null,"Orange"]
[null,"Argent"]
[null,"Violet"]
[null,"Rose"]
[null,"Jaune"]
[null,"Rouge"]
[null,"Noir"]
[null,"Vert"]
[null,"Bleu"]
[null,"Grais"]
[null,"Marron"]
[null,"Orange"]
[null,"Argent"]
[null,"Violet"]
[null,"Rose"]
[null,"Jaune"]
[null,"Rouge"]
[null,"Noir"]
[null,"Vert"]
[null,"Bleu"]
[null,"Grais"]
[null,"Marron"]
[null,"Orange"]
[null,"Argent"]
[null,"Violet"]
[null,"Rose"]
[null,"Jaune"]
[null,"Rouge"]
[null,"Noir"]
[null,"Vert"]
[null,"Bleu"]
[null,"Grais"]
[null,"Marron"]
[null,"Orange"]
[null,"Argent"]
[null,"Violet"]
[null,"Rose"]
[null,"Jaune"]
[null,"Rouge"]
[null,"Noir"]
[null,"Vert"]
[null,"Bleu"]
[null,"Grais"]
[null,"Marron"]
[null,"Orange"]
[null,"Argent"]
[null,"Violet"]
[null,"Rose"]
[null,"Jaune"]
[null,"Rouge"]
[null,"Noir"]
[null,"Vert"]
[null,"Bleu"]
[null,"Grais"]
[null,"Marron"]
[null,"Orange"]
[null,"Argent"]
[null,"Violet"]
[null,"Rose"]
[null,"Jaune"]
[null,"Rouge"]
[null,"Noir"]
[null,"Vert"]
[null,"Bleu"]
[null,"Grais"]
[null,"Marron"]
[null,"Orange"]
[null,"Argent"]
[null,"Violet"]
[null,"Rose"]
[null,"Jaune"]
[null,"Rouge"]
[null,"Noir"]
[null,"Vert"]
[null,"Bleu"]
[null,"Grais"]
[null,"Marron"]
[null,"Orange"]
[null,"Argent"]
[null,"Violet"]
[null,"Rose"]
[null,"Jaune"]
[null,"Rouge"]
[null,"Noir"]
[null,"Vert"]
[null,"Bleu"]
[null,"Grais"]
[null,"Marron"]
[null,"Orange"]
[null,"Argent"]
[null,"Violet"]
[null,"Rose"]
[null,"Jaune"]
[null,"Rouge"]
[null,"Noir"]
[null,"Vert"]
[null,"Bleu"]
[null,"Grais"]
[null,"Marron"]
[null,"Orange"]
[null,"Argent"]
[null,"Violet"]
[null,"Rose"]
[null,"Jaune"]
[null,"Rouge"]
[null,"Noir"]
[null,"Vert"]
[null,"Bleu"]
[null,"Grais"]
[null,"Marron"]
[null,"Orange"]
[null,"Argent"]
[null,"Violet"]
[null,"Rose"]
[null,"Jaune"]
[null,"Rouge"]
[null,"Noir"]
[null,"Vert"]
[null,"Bleu"]
[null,"Grais"]
[null,"Marron"]
[null,"Orange"]
[null,"Argent"]
[null,"Violet"]
[null,"Rose"]
[null,"Jaune"]
[null,"Rouge"]
[null,"Noir"]
[null,"Vert"]
[null,"Bleu"]
[null,"Grais"]
[null,"Marron"]
[null,"Orange"]
[null,"Argent"]
[null,"Violet"]
[null,"Rose"]
[null,"Jaune"]
[null,"Rouge"]
[null,"Noir"]
[null,"Vert"]
[null,"Bleu"]
[null,"Grais"]
[null,"Marron"]
[null,"Orange"]
[null,"Argent"]
[null,"Violet"]
[null,"Rose"]
[null,"Jaune"]
[null,"Rouge"]
[null,"Noir"]
[null,"Vert"]
[null,"Bleu"]
[null,"Grais"]
[null,"Marron"]
[null,"Orange"]
[null,"Argent"]
[null,"Violet"]
[null,"Rose"]
[null,"Jaune"]
[null,"Rouge"]
[null,"Noir"]
[null,"Vert"]
[null,"Bleu"]
[null,"Grais"]
[null,"Marron"]
[null,"Orange"]
[null,"Argent"]
[null,"Violet"]
[null,"Rose"]
[null,"Jaune"]
[null,"Rouge"]
[null,"Noir"]
[null,"Vert"]
[null,"Bleu"]
[null,"Grais"]
[null,"Marron"]
[null,"Orange"]
[null,"Argent"]
[null,"Violet"]
[null,"Rose"]
[null,"Jaune"]
[null,"Rouge"]
[null,"Noir"]
[null,"Vert"]
[null,"Bleu"]
[null,"Grais"]
[null,"Marron"]
[null,"Orange"]
[null,"Argent"]
[null,"Violet"]
[null,"Rose"]
[null,"Jaune"]
[null,"Rouge"]
[null,"Noir"]
[null,"Vert"]
[null,"Bleu"]
[null,"Grais"]
[null,"Marron"]
[null,"Orange"]
[null,"Argent"]
[null,"Violet"]
[null,"Rose"]
[null,"Jaune"]
[null,"Rouge"]
[null,"Noir"]
[null,"Vert"]
[null,"Bleu"]
[null,"Grais"]
[null,"Marron"]
[null,"Orange"]
[null,"Argent"]
[null,"Violet"]
[null,"Rose"]
[null,"Jaune"]
[null,"Rouge"]
[null,"Noir"]
[null,"Vert"]
[null,"Bleu"]
[null,"Grais"]
[null,"Marron"]
[null,"Orange"]
[null,"Argent"]
[null,"Violet"]
[null,"Rose"]
[null,"Jaune"]
[null,"Rouge"]
[null,"Noir"]
[null,"Vert"]
[null,"Bleu"]
[null,"Grais"]
[null,"Marron"]
[null,"Orange"]
[null,"Argent"]
[null,"Violet"]
[null,"Rose"]
[null,"Jaune"]
[null,"Rouge"]
[null,"Noir"]
[null,"Vert"]
[null,"Bleu"]
[null,"Grais"]
[null,"Marron"]
[null,"Orange"]
[null,"Argent"]
[null,"Violet"]
[null,"Rose"]
[null,"Jaune"]
[null,"Rouge"]
[null,"Noir"]
[null,"Vert"]
[null,"Bleu"]
[null,"Grais"]
[null,"Marron"]
[null,"Orange"]
[null,"Argent"]
[null,"Violet"]
[null,"Rose"]
[null,"Jaune"]
[null,"Rouge"]
[null,"Noir"]
[null,"Vert"]
[null,"Bleu"]
[null,"Grais"]
[null,"Marron"]
[null,"Orange"]
[null,"Argent"]
[null,"Violet"]
[null,"Rose"]
[null,"Jaune"]
[null,"Rouge"]
[null,"Noir"]
[null,"Vert"]
[null,"Bleu"]
[null,"Grais"]
[null,"Marron"]
[null,"Orange"]
[null,"Argent"]
[null,"Violet"]
[null,"Rose"]
[null,"Jaune"]
[null,"Rouge"]
[null,"Noir"]
[null,"Vert"]
[null,"Bleu"]
[null,"Grais"]
[null,"Marron"]
[null,"Orange"]
[null,"Argent"]
[null,"Violet"]
[null,"Rose"]
[null,"Jaune"]
[null,"Rouge"]
[null,"Noir"]
[null,"Vert"]
[null,"Bleu"]
[null,"Grais"]
[null,"Marron"]
[null,"Orange"]
[null,"Argent"]
[null,"Violet"]
[null,"Rose"]
[null,"Jaune"]
[null,"Rouge"]
[null,"Noir"]
[null,"Vert"]
[null,"Bleu"]
[null,"Grais"]
[null,"Marron"]
[null,"Orange"]
[null,"Argent"]
[null,"Violet"]
[null,"Rose"]
[null,"Jaune"]
[null,"Rouge"]
[null,"Noir"]
[null,"Vert"]
[null,"Bleu"]
[null,"Grais"]
[null,"Marron"]
[null,"Orange"]
[null,"Argent"]
[null,"Violet"]
[null,"Rose"]
[null,"Jaune"]
[null,"Rouge"]
[null,"Noir"]
[null,"Vert"]
[null,"Bleu"]
[null,"Grais"]
[null,"Marron"]
[null,"Orange"]
[null,"Argent"]
[null,"Violet"]
[null,"Rose"]
[null,"Jaune"]
[null,"Rouge"]
[null,"Noir"]
[null,"Vert"]
[null,"Bleu"]
[null,"Grais"]
[null,"Marron"]
[null,"Orange"]
[null,"Argent"]
[null,"Violet"]
[null,"Rose"]
[null,"Jaune"]
[null,"Rouge"]
[null,"Noir"]
[null,"Vert"]
[null,"Bleu"]
[null,"Grais"]
[null,"Marron"]
[null,"Orange"]
[null,"Argent"]
[null,"Violet"]
[null,"Rose"]
[null,"Jaune"]
[null,"Rouge"]
[null,"Noir"]
[null,"Vert"]
[null,"Bleu"]
[null,"Grais"]
[null,"Marron"]
[null,"Orange"]
[null,"Argent"]
[null,"Violet"]
[null,"Rose"]
[null,"Jaune"]
[null,"Rouge"]
[null,"Noir"]
[null,"Vert"]
[null,"Bleu"]
[null,"Grais"]
[null,"Marron"]
[null,"Orange"]
[null,"Argent"]
[null,"Violet"]
[null,"Rose"]
[null,"Jaune"]
[null,"Rouge"]
[null,"Noir"]
[null,"Vert"]
[null,"Bleu"]
[null,"Grais"]
[null,"Marron"]
[null,"Orange"]
[null,"Argent"]
[null,"Violet"]
[null,"Rose"]
[null,"Jaune"]
[null,"Rouge"]
[null,"Noir"]
[null,"Vert"]
[null,"Bleu"]
[null,"Grais"]
[null,"Marron"]
[null,"Orange"]
[null,"Argent"]
[null,"Violet"]
[null,"Rose"]
[null,"Jaune"]
[null,"Rouge"]
[null,"Noir"]
[null,"Vert"]
[null,"Bleu"]
[null,"Grais"]
[null,"Marron"]
[null,"Orange"]
[null,"Argent"]
[null,"Violet"]
[null,"Rose"]
[null,"Jaune"]
[null,"Rouge"]
[null,"Noir"]
[null,"Vert"]
[null,"Bleu"]
[null,"Grais"]
[null,"Marron"]
[null,"Orange"]
[null,"Argent"]
[null,"Violet"]
[null,"Rose"]
[null,"Jaune"]
[null,"Rouge"]
[null,"Noir"]
[null,"Vert"]
[null,"Bleu"]
[null,"Grais"]
[null,"Marron"]
[null,"Orange"]
[null,"Argent"]
[null,"Violet"]
[null,"Rose"]
[null,"Jaune"]
[null,"Rouge"]
[null,"Noir"]
[null,"Vert"]
[null,"Bleu"]
[null,"Grais"]
[null,"Marron"]
[null,"Orange"]
[null,"Argent"]
[null,"Violet"]
[null,"Rose"]
[null,"Jaune"]
[null,"Rouge"]
[null,"Noir"]
[null,"Vert"]
[null,"Bleu"]
[null,"Grais"]
[null,"Marron"]
[null,"Orange"]
[null,"Argent"]
[null,"Violet"]
[null,"Rose"]
[null,"Jaune"]
[null,"Rouge"]
[null,"Noir"]
[null,"Vert"]
[null,"Bleu"]
[null,"Grais"]
[null,"Marron"]
[null,"Orange"]
[null,"Argent"]
[null,"Violet"]
[null,"Rose"]
[null,"Jaune"]
[null,"Rouge"]
[null,"Noir"]
[null,"Vert"]
[null,"Bleu"]
[null,"Grais"]
[null,"Marron"]
[null,"Orange"]
[null,"Argent"]
[null,"Violet"]
[null,"Rose"]
[null,"Jaune"]
[null,"Rouge"]
[null,"Noir"]
[null,"Vert"]
[null,"Bleu"]
[null,"Grais"]
[null,"Marron"]
[null,"Orange"]
[null,"Argent"]
[null,"Violet"]
[null,"Rose"]
[null,"Jaune"]
[null,"Rouge"]
[null,"Noir"]
[null,"Vert"]
[null,"Bleu"]
[null,"Grais"]
[null,"Marron"]
[null,"Orange"]
[null,"Argent"]
[null,"Violet"]
[null,"Rose"]
[null,"Jaune"]
[null,"Rouge"]
[null,"Noir"]
[null,"Vert"]
[null,"Bleu"]
[null,"Grais"]
[null,"Marron"]
[null,"Orange"]
[null,"Argent"]
[null,"Violet"]
[null,"Rose"]
[null,"Jaune"]
[null,"Rouge"]
[null,"Noir"]
[null,"Vert"]
[null,"Bleu"]
[null,"Grais"]
[null,"Marron"]
[null,"Orange"]
[null,"Argent"]
[null,"Violet"]
[null,"Rose"]
[null,"Jaune"]
[null,"Rouge"]
[null,"Noir"]
[null,"Vert"]
[null,"Bleu"]
[null,"Grais"]
[null,"Marron"]
[null,"Orange"]
[null,"Argent"]
[null,"Violet"]
[null,"Rose"]
[null,"Jaune"]
[null,"Rouge"]
[null,"Noir"]
[null,"Vert"]
[null,"Bleu"]
[null,"Grais"]
[null,"Marron"]
[null,"Orange"]
[null,"Argent"]
[null,"Violet"]
[null,"Rose"]
[null,"Jaune"]
[null,"Rouge"]
[null,"Noir"]
[null,"Vert"]
[null,"Bleu"]
[null,"Grais"]
[null,"Marron"]
[null,"Orange"]
[null,"Argent"]
[null,"Violet"]
[null,"Rose"]
[null,"Jaune"]
[null,"Rouge"]
[null,"Noir"]
[null,"Vert"]
[null,"Bleu"]
[null,"Grais"]
[null,"Marron"]
[null,"Orange"]
[null,"Argent"]
[null,"Violet"]
[null,"Rose"]
[null,"Jaune"]
[null,"Rouge"]
[null,"Noir"]
[null,"Vert"]
[null,"Bleu"]
[null,"Grais"]
[null,"Marron"]
[null,"Orange"]
[null,"Argent"]
[null,"Violet"]
[null,"Rose"]
[null,"Jaune"]
[null,"Rouge"]
[null,"Noir"]
[null,"Vert"]
[null,"Bleu"]
[null,"Grais"]
[null,"Marron"]
[null,"Orange"]
[null,"Argent"]
[null,"Violet"]
[null,"Rose"]
[null,"Jaune"]
[null,"Rouge"]
[null,"Noir"]
[null,"Vert"]
[null,"Bleu"]
[null,"Grais"]
[null,"Marron"]
[null,"Orange"]
[null,"Argent"]
[null,"Violet"]
[null,"Rose"]
[null,"Jaune"]
[null,"Rouge"]
[null,"Noir"]
[null,"Vert"]
[null,"Bleu"]
[null,"Grais"]
[null,"Marron"]
[null,"Orange"]
[null,"Argent"]
[null,"Violet"]
[null,"Rose"]
[null,"Jaune"]
[null,"Rouge"]
[null,"Noir"]
[null,"Vert"]
[null,"Bleu"]
[null,"Grais"]
[null,"Marron"]
[null,"Orange"]
[null,"Argent"]
[null,"Violet"]
[null,"Rose"]
[null,"Jaune"]
[null,"Rouge"]
[null,"Noir"]
[null,"Vert"]
[null,"Bleu"]
[null,"Grais"]
[null,"Marron"]
[null,"Orange"]
[null,"Argent"]
[null,"Violet"]
[null,"Rose"]
[null,"Jaune"]
[null,"Rouge"]
[null,"Noir"]
[null,"Vert"]
[null,"Bleu"]
[null,"Grais"]
[null,"Marron"]
[null,"Orange"]
[null,"Argent"]
[null,"Violet"]
[null,"Rose"]
[null,"Jaune"]
[null,"Rouge"]
[null,"Noir"]
[null,"Vert"]
[null,"Bleu"]
[null,"Grais"]
[null,"Marron"]
[null,"Orange"]
[null,"Argent"]
[null,"Violet"]
[null,"Rose"]
[null,"Jaune"]
[null,"Rouge"]
[null,"Noir"]
[null,"Vert"]
[null,"Bleu"]
[null,"Grais"]
[null,"Marron"]
[null,"Orange"]
[null,"Argent"]
[null,"Violet"]
[null,"Rose"]
[null,"Jaune"]
[null,"Rouge"]
[null,"Noir"]
[null,"Vert"]
[null,"Bleu"]
[null,"Grais"]
[null,"Marron"]
[null,"Orange"]
[null,"Argent"]
[null,"Violet"]
[null,"Rose"]
[null,"Jaune"]
[null,"Rouge"]
[null,"Noir"]
[null,"Vert"]
[null,"Bleu"]
[null,"Grais"]
[null,"Marron"]
[null,"Orange"]
[null,"Argent"]
[null,"Violet"]
[null,"Rose"]
[null,"Jaune"]
[null,"Rouge"]
[null,"Noir"]
[null,"Vert"]
[null,"Bleu"]
[null,"Grais"]
[null,"Marron"]
[null,"Orange"]
[null,"Argent"]
[null,"Violet"]
[null,"Rose"]
[null,"Jaune"]
[null,"Rouge"]
[null,"Noir"]
[null,"Vert"]
[null,"Bleu"]
[null,"Grais"]
[null,"Marron"]
[null,"Orange"]
[null,"Argent"]
[null,"Violet"]
[null,"Rose"]
[null,"Jaune"]
[null,"Rouge"]
[null,"Noir"]
[null,"Vert"]
[null,"Bleu"]
[null,"Grais"]
[null,"Marron"]
[null,"Orange"]
[null,"Argent"]
[null,"Violet"]
[null,"Rose"]
[null,"Jaune"]
[null,"Rouge"]
[null,"Noir"]
[null,"Vert"]
[null,"Bleu"]
[null,"Grais"]
[null,"Marron"]
[null,"Orange"]
[null,"Argent"]
[null,"Violet"]
[null,"Rose"]
[null,"Jaune"]
[null,"Rouge"]
[null,"Noir"]
[null,"Vert"]
[null,"Bleu"]
[null,"Grais"]
[null,"Marron"]
[null,"Orange"]
[null,"Argent"]
[null,"Violet"]
[null,"Rose"]
[null,"Jaune"]
[null,"Rouge"]
[null,"Noir"]
[null,"Vert"]
[null,"Bleu"]
[null,"Grais"]
[null,"Marron"]
[null,"Orange"]
[null,"Argent"]
[null,"Violet"]
[null,"Rose"]
[null,"Jaune"]
[null,"Rouge"]
[null,"Noir"]
[null,"Vert"]
[null,"Bleu"]
[null,"Grais"]
[null,"Marron"]
[null,"Orange"]
[null,"Argent"]
[null,"Violet"]
[null,"Rose"]
[null,"Jaune"]
[null,"Rouge"]
[null,"Noir"]
[null,"Vert"]
[null,"Bleu"]
[null,"Grais"]
[null,"Marron"]
[null,"Orange"]
[null,"Argent"]
[null,"Violet"]
[null,"Rose"]
[null,"Jaune"]
[null,"Rouge"]
[null,"Noir"]
[null,"Vert"]
[null,"Bleu"]
[null,"Grais"]
[null,"Marron"]
[null,"Orange"]
[null,"Argent"]
[null,"Violet"]
[null,"Rose"]
[null,"Jaune"]
[null,"Rouge"]
[null,"Noir"]
[null,"Vert"]
[null,"Bleu"]
[null,"Grais"]
[null,"Marron"]
[null,"Orange"]
[null,"Argent"]
[null,"Violet"]
[null,"Rose"]
[null,"Jaune"]
[null,"Rouge"]
[null,"Noir"]
[null,"Vert"]
[null,"Bleu"]
[null,"Grais"]
[null,"Marron"]
[null,"Orange"]
[null,"Argent"]
[null,"Violet"]
[null,"Rose"]
[null,"Jaune"]
[null,"Rouge"]
[null,"Noir"]
[null,"Vert"]
[null,"Bleu"]
[null,"Grais"]
[null,"Marron"]
[null,"Orange"]
[null,"Argent"]
[null,"Violet"]
[null,"Rose"]
[null,"Jaune"]
[null,"Rouge"]
[null,"Noir"]
[null,"Vert"]
[null,"Bleu"]
[null,"Grais"]
[null,"Marron"]
[null,"Orange"]
[null,"Argent"]
[null,"Violet"]
[null,"Rose"]
[null,"Jaune"]
[null,"Rouge"]
[null,"Noir"]
[null,"Vert"]
[null,"Bleu"]
[null,"Grais"]
[null,"Marron"]
[null,"Orange"]
[null,"Argent"]
[null,"Violet"]
[null,"Rose"]
[null,"Jaune"]
[null,"Rouge"]
[null,"Noir"]
[null,"Vert"]
[null,"Bleu"]
[null,"Grais"]
[null,"Marron"]
[null,"Orange"]
[null,"Argent"]
[null,"Violet"]
[null,"Rose"]
[null,"Jaune"]
[null,"Rouge"]
[null,"Noir"]
[null,"Vert"]
[null,"Bleu"]
[null,"Grais"]
[null,"Marron"]
[null,"Orange"]
[null,"Argent"]
[null,"Violet"]
[null,"Rose"]
[null,"Jaune"]
[null,"Rouge"]
[null,"Noir"]
[null,"Vert"]
[null,"Bleu"]
[null,"Grais"]
[null,"Marron"]
[null,"Orange"]
[null,"Argent"]
[null,"Violet"]
[null,"Rose"]
[null,"Jaune"]
[null,"Rouge"]
[null,"Noir"]
[null,"Vert"]
[null,"Bleu"]
[null,"Grais"]
[null,"Marron"]
[null,"Orange"]
[null,"Argent"]
[null,"Violet"]
[null,"Rose"]
[null,"Jaune"]
[null,"Rouge"]
[null,"Noir"]
[null,"Vert"]
[null,"Bleu"]
[null,"Grais"]
[null,"Marron"]
[null,"Orange"]
[null,"Argent"]
[null,"Violet"]
[null,"Rose"]
[null,"Jaune"]
[null,"Rouge"]
[null,"Noir"]
[null,"Vert"]
[null,"Bleu"]
[null,"Grais"]
[null,"Marron"]
[null,"Orange"]
[null,"Argent"]
[null,"Violet"]
[null,"Rose"]
[null,"Jaune"]
[null,"Rouge"]
[null,"Noir"]
[null,"Vert"]
[null,"Bleu"]
[null,"Grais"]
[null,"Marron"]
[null,"Orange"]
[null,"Argent"]
[null,"Violet"]
[null,"Rose"]
[null,"Jaune"]
[null,"Rouge"]
[null,"Noir"]
[null,"Vert"]
[null,"Bleu"]
[null,"Grais"]
[null,"Marron"]
[null,"Orange"]
[null,"Argent"]
[null,"Violet"]
[null,"Rose"]
[null,"Jaune"]
[null,"Rouge"]
[null,"Noir"]
[null,"Vert"]
[null,"Bleu"]
[null,"Grais"]
[null,"Marron"]
[null,"Orange"]
[null,"Argent"]
[null,"Violet"]
[null,"Rose"]
[null,"Jaune"]
[null,"Rouge"]
[null,"Noir"]
[null,"Vert"]
[null,"Bleu"]
[null,"Grais"]
[null,"Marron"]
[null,"Orange"]
[null,"Argent"]
[null,"Violet"]
[null,"Rose"]
[null,"Jaune"]
[null,"Rouge"]
[null,"Noir"]
[null,"Vert"]
[null,"Bleu"]
[null,"Grais"]
[null,"Marron"]
[null,"Orange"]
[null,"Argent"]
[null,"Violet"]
[null,"Rose"]
[null,"Jaune"]
[null,"Rouge"]
[null,"Noir"]
[null,"Vert"]
[null,"Bleu"]
[null,"Grais"]
[null,"Marron"]
[null,"Orange"]
[null,"Argent"]
[null,"Violet"]
[null,"Rose"]
[null,"Jaune"]
[null,"Rouge"]
[null,"Noir"]
[null,"Vert"]
[null,"Bleu"]
[null,"Grais"]
[null,"Marron"]
[null,"Orange"]
[null,"Argent"]
[null,"Violet"]
[null,"Rose"]
[null,"Jaune"]
[null,"Rouge"]
[null,"Noir"]
[null,"Vert"]
[null,"Bleu"]
[null,"Grais"]
[null,"Marron"]
[null,"Orange"]
[null,"Argent"]
[null,"Violet"]
[null,"Rose"]
[null,"Jaune"]
[null,"Rouge"]
[null,"Noir"]
[null,"Vert"]
[null,"Bleu"]
[null,"Grais"]
[null,"Marron"]
[null,"Orange"]
[null,"Argent"]
[null,"Violet"]
[null,"Rose"]
[null,"Jaune"]
[null,"Rouge"]
[null,"Noir"]
[null,"Vert"]
[null,"Bleu"]
[null,"Grais"]
[null,"Marron"]
[null,"Orange"]
[null,"Argent"]
[null,"Violet"]
[null,"Rose"]
[null,"Jaune"]
[null,"Rouge"]
[null,"Noir"]
[null,"Vert"]
[null,"Bleu"]
[null,"Grais"]
[null,"Marron"]
[null,"Orange"]
[null,"Argent"]
[null,"Violet"]
[null,"Rose"]
[null,"Jaune"]
[null,"Rouge"]
[null,"Noir"]
[null,"Vert"]
[null,"Bleu"]
[null,"Grais"]
[null,"Marron"]
[null,"Orange"]
[null,"Argent"]
[null,"Violet"]
[null,"Rose"]
[null,"Jaune"]
[null,"Rouge"]
[null,"Noir"]
[null,"Vert"]
[null,"Bleu"]
[null,"Grais"]
[null,"Marron"]
[null,"Orange"]
[null,"Argent"]
[null,"Violet"]
[null,"Rose"]
[null,"Jaune"]
[null,"Rouge"]
[null,"Noir"]
[null,"Vert"]
[null,"Bleu"]
[null,"Grais"]
[null,"Marron"]
[null,"Orange"]
[null,"Argent"]
[null,"Violet"]
[null,"Rose"]
[null,"Jaune"]
[null,"Rouge"]
[null,"Noir"]
[null,"Vert"]
[null,"Bleu"]
[null,"Grais"]
[null,"Marron"]
[null,"Orange"]
[null,"Argent"]
[null,"Violet"]
[null,"Rose"]
[null,"Jaune"]
[null,"Rouge"]
[null,"Noir"]
[null,"Vert"]
[null,"Bleu"]
[null,"Grais"]
[null,"Marron"]
[null,"Orange"]
[null,"Argent"]
[null,"Violet"]
[null,"Rose"]
[null,"Jaune"]
[null,"Rouge"]
[null,"Noir"]
[null,"Vert"]
[null,"Bleu"]
[null,"Grais"]
[null,"Marron"]
[null,"Orange"]
[null,"Argent"]
[null,"Violet"]
[null,"Rose"]
[null,"Jaune"]
[null,"Rouge"]
[null,"Noir"]
[null,"Vert"]
[null,"Bleu"]
[null,"Grais"]
[null,"Marron"]
[null,"Orange"]
[null,"Argent"]
[null,"Violet"]
[null,"Rose"]
[null,"Jaune"]
[null,"Rouge"]
[null,"Noir"]
[null,"Vert"]
[null,"Bleu"]
[null,"Grais"]
[null,"Marron"]
[null,"Orange"]
[null,"Argent"]
[null,"Violet"]
[null,"Rose"]
[null,"Jaune"]
[null,"Rouge"]
[null,"Noir"]
[null,"Vert"]
[null,"Bleu"]
[null,"Grais"]
[null,"Marron"]
[null,"Orange"]
[null,"Argent"]
[null,"Violet"]
[null,"Rose"]
[null,"Jaune"]
[null,"Rouge"]
[null,"Noir"]
[null,"Vert"]
[null,"Bleu"]
[null,"Grais"]
[null,"Marron"]
[null,"Orange"]
[null,"Argent"]
[null,"Violet"]
[null,"Rose"]
[null,"Jaune"]
[null,"Rouge"]
[null,"Noir"]
[null,"Vert"]
[null,"Bleu"]
[null,"Grais"]
[null,"Marron"]
[null,"Orange"]
[null,"Argent"]
[null,"Violet"]
[null,"Rose"]
[null,"Jaune"]
[null,"Rouge"]
[null,"Noir"]
[null,"Vert"]
[null,"Bleu"]
[null,"Grais"]
[null,"Marron"]
[null,"Orange"]
[null,"Argent"]
[null,"Violet"]
[null,"Rose"]
[null,"Jaune"]
[null,"Rouge"]
[null,"Noir"]
[null,"Vert"]
[null,"Bleu"]
[null,"Grais"]
[null,"Marron"]
[null,"Orange"]
[null,"Argent"]
[null,"Violet"]
[null,"Rose"]
[null,"Jaune"]
[null,"Rouge"]
[null,"Noir"]
[null,"Vert"]
[null,"Bleu"]
[null,"Grais"]
[null,"Marron"]
[null,"Orange"]
[null,"Argent"]
[null,"Violet"]
[null,"Rose"]
[null,"Jaune"]
[null,"Rouge"]
[null,"Noir"]
[null,"Vert"]
[null,"Bleu"]
[null,"Grais"]
[null,"Marron"]
[null,"Orange"]
[null,"Argent"]
[null,"Violet"]
[null,"Rose"]
[null,"Jaune"]
[null,"Rouge"]
[null,"Noir"]
[null,"Vert"]
[null,"Bleu"]
[null,"Grais"]
[null,"Marron"]
[null,"Orange"]
[null,"Argent"]
[null,"Violet"]
[null,"Rose"]
[null,"Jaune"]
[null,"Rouge"]
[null,"Noir"]
[null,"Vert"]
[null,"Bleu"]
[null,"Grais"]
[null,"Marron"]
[null,"Orange"]
[null,"Argent"]
[null,"Violet"]
[null,"Rose"]
[null,"Jaune"]
[null,"Rouge"]
[null,"Noir"]
[null,"Vert"]
[null,"Bleu"]
[null,"Grais"]
[null,"Marron"]
[null,"Orange"]
[null,"Argent"]
[null,"Violet"]
[null,"Rose"]
[null,"Jaune"]
[null,"Rouge"]
[null,"Noir"]
[null,"Vert"]
[null,"Bleu"]
[null,"Grais"]
[null,"Marron"]
[null,"Orange"]
[null,"Argent"]
[null,"Violet"]
[null,"Rose"]
[null,"Jaune"]
[null,"Rouge"]
[null,"Noir"]
[null,"Vert"]
[null,"Bleu"]
[null,"Grais"]
[null,"Marron"]
[null,"Orange"]
[null,"Argent"]
[null,"Violet"]
[null,"Rose"]
[null,"Jaune"]
[null,"Rouge"]
[null,"Noir"]
[null,"Vert"]
[null,"Bleu"]
[null,"Grais"]
[null,"Marron"]
[null,"Orange"]
[null,"Argent"]
[null,"Violet"]
[null,"Rose"]
[null,"Jaune"]
[null,"Rouge"]
[null,"Noir"]
[null,"Vert"]
[null,"Bleu"]
[null,"Grais"]
[null,"Marron"]
[null,"Orange"]
[null,"Argent"]
[null,"Violet"]
[null,"Rose"]
[null,"Jaune"]
[null,"Rouge"]
[null,"Noir"]
[null,"Vert"]
[null,"Bleu"]
[null,"Grais"]
[null,"Marron"]
[null,"Orange"]
[null,"Argent"]
[null,"Violet"]
[null,"Rose"]
[null,"Jaune"]
[null,"Rouge"]
[null,"Noir"]
[null,"Vert"]
[null,"Bleu"]
[null,"Grais"]
[null,"Marron"]
[null,"Orange"]
[null,"Argent"]
[null,"Violet"]
[null,"Rose"]
[null,"Jaune"]
[null,"Rouge"]
[null,"Noir"]
[null,"Vert"]
[null,"Bleu"]
[null,"Grais"]
[null,"Marron"]
[null,"Orange"]
[null,"Argent"]
[null,"Violet"]
[null,"Rose"]
[null,"Jaune"]
[null,"Rouge"]
[null,"Noir"]
[null,"Vert"]
[null,"Bleu"]
[null,"Grais"]
[null,"Marron"]
[null,"Orange"]
[null,"Argent"]
[null,"Violet"]
[null,"Rose"]
[null,"Jaune"]
[null,"Rouge"]
[null,"Noir"]
[null,"Vert"]
[null,"Bleu"]
[null,"Grais"]
[null,"Marron"]
[null,"Orange"]
[null,"Argent"]
[null,"Violet"]
[null,"Rose"]
[null,"Jaune"]
[null,"Rouge"]
[null,"Noir"]
[null,"Vert"]
[null,"Bleu"]
[null,"Grais"]
[null,"Marron"]
[null,"Orange"]
[null,"Argent"]
[null,"Violet"]
[null,"Rose"]
[null,"Jaune"]
[null,"Rouge"]
[null,"Noir"]
[null,"Vert"]
[null,"Bleu"]
[null,"Grais"]
[null,"Marron"]
[null,"Orange"]
[null,"Argent"]
[null,"Violet"]
[null,"Rose"]
[null,"Jaune"]
[null,"Rouge"]
[null,"Noir"]
[null,"Vert"]
[null,"Bleu"]
[null,"Grais"]
[null,"Marron"]
[null,"Orange"]
[null,"Argent"]
[null,"Violet"]
[null,"Rose"]
[null,"Jaune"]
[null,"Rouge"]
[null,"Noir"]
[null,"Vert"]
[null,"Bleu"]
[null,"Grais"]
[null,"Marron"]
[null,"Orange"]
[null,"Argent"]
[null,"Violet"]
[null,"Rose"]
[null,"Jaune"]
[null,"Rouge"]
[null,"Noir"]
[null,"Vert"]
[null,"Bleu"]
[null,"Grais"]
[null,"Marron"]
[null,"Orange"]
[null,"Argent"]
[null,"Violet"]
[null,"Rose"]
[null,"Jaune"]
[null,"Rouge"]
[null,"Noir"]
[null,"Vert"]
[null,"Bleu"]
[null,"Grais"]
[null,"Marron"]
[null,"Orange"]
[null,"Argent"]
[null,"Violet"]
[null,"Rose"]
[null,"Jaune"]
[null,"Rouge"]
[null,"Noir"]
[null,"Vert"]
[null,"Bleu"]
[null,"Grais"]
[null,"Marron"]
[null,"Orange"]
[null,"Argent"]
[null,"Violet"]
[null,"Rose"]
[null,"Jaune"]
[null,"Rouge"]
[null,"Noir"]
[null,"Vert"]
[null,"Bleu"]
[null,"Grais"]
[null,"Marron"]
[null,"Orange"]
[null,"Argent"]
[null,"Violet"]
[null,"Rose"]
[null,"Jaune"]
[null,"Rouge"]
[null,"Noir"]
[null,"Vert"]
[null,"Bleu"]
[null,"Grais"]
[null,"Marron"]
[null,"Orange"]
[null,"Argent"]
[null,"Violet"]
[null,"Rose"]
[null,"Jaune"]
[null,"Rouge"]
[null,"Noir"]
[null,"Vert"]
[null,"Bleu"]
[null,"Grais"]
[null,"Marron"]
[null,"Orange"]
[null,"Argent"]
[null,"Violet"]
[null,"Rose"]
[null,"Jaune"]
[null,"Rouge"]
[null,"Noir"]
[null,"Vert"]
[null,"Bleu"]
[null,"Grais"]
[null,"Marron"]
[null,"Orange"]
[null,"Argent"]
[null,"Violet"]
[null,"Rose"]
[null,"Jaune"]
[null,"Rouge"]
[null,"Noir"]
[null,"Vert"]
[null,"Bleu"]
[null,"Grais"]
[null,"Marron"]
[null,"Orange"]
[null,"Argent"]
[null,"Violet"]
[null,"Rose"]
[null,"Jaune"]
[null,"Rouge"]
[null,"Noir"]
[null,"Vert"]
[null,"Bleu"]
[null,"Grais"]
[null,"Marron"]
[null,"Orange"]
[null,"Argent"]
[null,"Violet"]
[null,"Rose"]
[null,"Jaune"]
[null,"Rouge"]
[null,"Noir"]
[null,"Vert"]
[null,"Bleu"]
[null,"Grais"]
[null,"Marron"]
[null,"Orange"]
[null,"Argent"]
[null,"Violet"]
[null,"Rose"]
[null,"Jaune"]
[null,"Rouge"]
[null,"Noir"]
[null,"Vert"]
[null,"Bleu"]
[null,"Grais"]
[null,"Marron"]
[null,"Orange"]
[null,"Argent"]
[null,"Violet"]
[null,"Rose"]
[null,"Jaune"]
[null,"Rouge"]
[null,"Noir"]
[null,"Vert"]
[null,"Bleu"]
[null,"Grais"]
[null,"Marron"]
[null,"Orange"]
[null,"Argent"]
[null,"Violet"]
[null,"Rose"]
[null,"Jaune"]
[null,"Rouge"]
[null,"Noir"]
[null,"Vert"]
[null,"Bleu"]
[null,"Grais"]
[null,"Marron"]
[null,"Orange"]
[null,"Argent"]
[null,"Violet"]
[null,"Rose"]
[null,"Jaune"]
[null,"Rouge"]
[null,"Noir"]
[null,"Vert"]
[null,"Bleu"]
[null,"Grais"]
[null,"Marron"]
[null,"Orange"]
[null,"Argent"]
[null,"Violet"]
[null,"Rose"]
[null,"Jaune"]
[null,"Rouge"]
[null,"Noir"]
[null,"Vert"]
[null,"Bleu"]
[null,"Grais"]
[null,"Marron"]
[null,"Orange"]
[null,"Argent"]
[null,"Violet"]
[null,"Rose"]
[null,"Jaune"]
[null,"Rouge"]
[null,"Noir"]
[null,"Vert"]
[null,"Bleu"]
[null,"Grais"]
[null,"Marron"]
[null,"Orange"]
[null,"Argent"]
[null,"Violet"]
[null,"Rose"]
[null,"Jaune"]
[null,"Rouge"]
[null,"Noir"]
[null,"Vert"]
[null,"Bleu"]
[null,"Grais"]
[null,"Marron"]
[null,"Orange"]
[null,"Argent"]
[null,"Violet"]
[null,"Rose"]
[null,"Jaune"]
[null,"Rouge"]
[null,"Noir"]
[null,"Vert"]
[null,"Bleu"]
[null,"Grais"]
[null,"Marron"]
[null,"Orange"]
[null,"Argent"]
[null,"Violet"]
[null,"Rose"]
[null,"Jaune"]
[null,"Rouge"]
[null,"Noir"]
[null,"Vert"]
[null,"Bleu"]
[null,"Grais"]
[null,"Marron"]
[null,"Orange"]
[null,"Argent"]
[null,"Violet"]
[null,"Rose"]
[null,"Jaune"]
[null,"Rouge"]
[null,"Noir"]
[null,"Vert"]
[null,"Bleu"]
[null,"Grais"]
[null,"Marron"]
[null,"Orange"]
[null,"Argent"]
[null,"Violet"]
[null,"Rose"]
[null,"Jaune"]
[null,"Rouge"]
[null,"Noir"]
[null,"Vert"]
[null,"Bleu"]
[null,"Grais"]
[null,"Marron"]
[null,"Orange"]
[null,"Argent"]
[null,"Violet"]
[null,"Rose"]
[null,"Jaune"]
[null,"Rouge"]
[null,"Noir"]
[null,"Vert"]
[null,"Bleu"]
[null,"Grais"]
[null,"Marron"]
[null,"Orange"]
[null,"Argent"]
[null,"Violet"]
[null,"Rose"]
[null,"Jaune"]
[null,"Rouge"]
[null,"Noir"]
[null,"Vert"]
[null,"Bleu"]
[null,"Grais"]
[null,"Marron"]
[null,"Orange"]
[null,"Argent"]
[null,"Violet"]
[null,"Rose"]
[null,"Jaune"]
[null,"Rouge"]
[null,"Noir"]
[null,"Vert"]
[null,"Bleu"]
[null,"Grais"]
[null,"Marron"]
[null,"Orange"]
[null,"Argent"]
[null,"Violet"]
[null,"Rose"]
[null,"Jaune"]
[null,"Rouge"]
[null,"Noir"]
[null,"Vert"]
[null,"Bleu"]
[null,"Grais"]
[null,"Marron"]
[null,"Orange"]
[null,"Argent"]
[null,"Violet"]
[null,"Rose"]
[null,"Jaune"]
[null,"Rouge"]
[null,"Noir"]
[null,"Vert"]
[null,"Bleu"]
[null,"Grais"]
[null,"Marron"]
[null,"Orange"]
[null,"Argent"]
[null,"Violet"]
[null,"Rose"]
[null,"Jaune"]
[null,"Rouge"]
[null,"Noir"]
[null,"Vert"]
[null,"Bleu"]
[null,"Grais"]
[null,"Marron"]
[null,"Orange"]
[null,"Argent"]
[null,"Violet"]
[null,"Rose"]
[null,"Jaune"]
[null,"Rouge"]
[null,"Noir"]
[null,"Vert"]
[null,"Bleu"]
[null,"Grais"]
[null,"Marron"]
[null,"Orange"]
[null,"Argent"]
[null,"Violet"]
[null,"Rose"]
[null,"Jaune"]
[null,"Rouge"]
[null,"Noir"]
[null,"Vert"]
[null,"Bleu"]
[null,"Grais"]
[null,"Marron"]
[null,"Orange"]
[null,"Argent"]
[null,"Violet"]
[null,"Rose"]
[null,"Jaune"]
[null,"Rouge"]
[null,"Noir"]
[null,"Vert"]
[null,"Bleu"]
[null,"Grais"]
[null,"Marron"]
[null,"Orange"]
[null,"Argent"]
[null,"Violet"]
[null,"Rose"]
[null,"Jaune"]
[null,"Rouge"]
[null,"Noir"]
[null,"Vert"]
[null,"Bleu"]
[null,"Grais"]
[null,"Marron"]
[null,"Orange"]
[null,"Argent"]
[null,"Violet"]
[null,"Rose"]
[null,"Jaune"]
[null,"Rouge"]
[null,"Noir"]
[null,"Vert"]
[null,"Bleu"]
[null,"Grais"]
[null,"Marron"]
[null,"Orange"]
[null,"Argent"]
[null,"Violet"]
[null,"Rose"]
[null,"Jaune"]
[null,"Rouge"]
[null,"Noir"]
[null,"Vert"]
[null,"Bleu"]
[null,"Grais"]
[null,"Marron"]
[null,"Orange"]
[null,"Argent"]
[null,"Violet"]
[null,"Rose"]
[null,"Jaune"]
[null,"Rouge"]
[null,"Noir"]
[null,"Vert"]
[null,"Bleu"]
[null,"Grais"]
[null,"Marron"]
[null,"Orange"]
[null,"Argent"]
[null,"Violet"]
[null,"Rose"]
[null,"Jaune"]
[null,"Rouge"]
[null,"Noir"]
[null,"Vert"]
[null,"Bleu"]
[null,"Grais"]
[null,"Marron"]
[null,"Orange"]
[null,"Argent"]
[null,"Violet"]
[null,"Rose"]
[null,"Jaune"]
[null,"Rouge"]
[null,"Noir"]
[null,"Vert"]
[null,"Bleu"]
[null,"Grais"]
[null,"Marron"]
[null,"Orange"]
[null,"Argent"]
[null,"Violet"]
[null,"Rose"]
[null,"Jaune"]
[null,"Rouge"]
[null,"Noir"]
[null,"Vert"]
[null,"Bleu"]
[null,"Grais"]
[null,"Marron"]
[null,"Orange"]
[null,"Argent"]
[null,"Violet"]
[null,"Rose"]
[null,"Jaune"]
[null,"Rouge"]
[null,"Noir"]
[null,"Vert"]
[null,"Bleu"]
[null,"Grais"]
[null,"Marron"]
[null,"Orange"]
[null,"Argent"]
[null,"Violet"]
[null,"Rose"]
[null,"Jaune"]
[null,"Rouge"]
[null,"Noir"]
[null,"Vert"]
[null,"Bleu"]
[null,"Grais"]
[null,"Marron"]
[null,"Orange"]
[null,"Argent"]
[null,"Violet"]
[null,"Rose"]
[null,"Jaune"]
[null,"Rouge"]
[null,"Noir"]
[null,"Vert"]
[null,"Bleu"]
[null,"Grais"]
[null,"Marron"]
[null,"Orange"]
[null,"Argent"]
[null,"Violet"]
[null,"Rose"]
[null,"Jaune"]
[null,"Rouge"]
[null,"Noir"]
[null,"Vert"]
[null,"Bleu"]
[null,"Grais"]
[null,"Marron"]
[null,"Orange"]
[null,"Argent"]
[null,"Violet"]
[null,"Rose"]
[null,"Jaune"]
[null,"Rouge"]
[null,"Noir"]
[null,"Vert"]
[null,"Bleu"]
[null,"Grais"]
[null,"Marron"]
[null,"Orange"]
[null,"Argent"]
[null,"Violet"]
[null,"Rose"]
[null,"Jaune"]
[null,"Rouge"]
[null,"Noir"]
[null,"Vert"]
[null,"Bleu"]
[null,"Grais"]
[null,"Marron"]
[null,"Orange"]
[null,"Argent"]
[null,"Violet"]
[null,"Rose"]
[null,"Jaune"]
[null,"Rouge"]
[null,"Noir"]
[null,"Vert"]
[null,"Bleu"]
[null,"Grais"]
[null,"Marron"]
[null,"Orange"]
[null,"Argent"]
[null,"Violet"]
[null,"Rose"]
[null,"Jaune"]
[null,"Rouge"]
[null,"Noir"]
[null,"Vert"]
[null,"Bleu"]
[null,"Grais"]
[null,"Marron"]
[null,"Orange"]
[null,"Argent"]
[null,"Violet"]
[null,"Rose"]
[null,"Jaune"]
[null,"Rouge"]
[null,"Noir"]
[null,"Vert"]
[null,"Bleu"]
[null,"Grais"]
[null,"Marron"]
[null,"Orange"]
[null,"Argent"]
[null,"Violet"]
[null,"Rose"]
[null,"Jaune"]
[null,"Rouge"]
[null,"Noir"]
[null,"Vert"]
[null,"Bleu"]
[null,"Grais"]
[null,"Marron"]
[null,"Orange"]
[null,"Argent"]
[null,"Violet"]
[null,"Rose"]
[null,"Jaune"]
[null,"Rouge"]
[null,"Noir"]
[null,"Vert"]
[null,"Bleu"]
[null,"Grais"]
[null,"Marron"]
[null,"Orange"]
[null,"Argent"]
[null,"Violet"]
[null,"Rose"]
[null,"Jaune"]
[null,"Rouge"]
[null,"Noir"]
[null,"Vert"]
[null,"Bleu"]
[null,"Grais"]
[null,"Marron"]
[null,"Orange"]
[null,"Argent"]
[null,"Violet"]
[null,"Rose"]
[null,"Jaune"]
[null,"Rouge"]
[null,"Noir"]
[null,"Vert"]
[null,"Bleu"]
[null,"Grais"]
[null,"Marron"]
[null,"Orange"]
[null,"Argent"]
[null,"Violet"]
[null,"Rose"]
[null,"Jaune"]
[null,"Rouge"]
[null,"Noir"]
[null,"Vert"]
[null,"Bleu"]
[null,"Grais"]
[null,"Marron"]
[null,"Orange"]
[null,"Argent"]
[null,"Violet"]
[null,"Rose"]
[null,"Jaune"]
[null,"Rouge"]
[null,"Noir"]
[null,"Vert"]
[null,"Bleu"]
[null,"Grais"]
[null,"Marron"]
[null,"Orange"]
[null,"Argent"]
[null,"Violet"]
[null,"Rose"]
[null,"Jaune"]
[null,"Rouge"]
[null,"Noir"]
[null,"Vert"]
[null,"Bleu"]
[null,"Grais"]
[null,"Marron"]
[null,"Orange"]
[null,"Argent"]
[null,"Violet"]
[null,"Rose"]
[null,"Jaune"]
[null,"Rouge"]
[null,"Noir"]
[null,"Vert"]
[null,"Bleu"]
[null,"Grais"]
[null,"Marron"]
[null,"Orange"]
[null,"Argent"]
[null,"Violet"]
[null,"Rose"]
[null,"Jaune"]
[null,"Rouge"]
[null,"Noir"]
[null,"Vert"]
[null,"Bleu"]
[null,"Grais"]
[null,"Marron"]
[null,"Orange"]
[null,"Argent"]
[null,"Violet"]
[null,"Rose"]
[null,"Jaune"]
[null,"Rouge"]
[null,"Noir"]
[null,"Vert"]
[null,"Bleu"]
[null,"Grais"]
[null,"Marron"]
[null,"Orange"]
[null,"Argent"]
[null,"Violet"]
[null,"Rose"]
[null,"Jaune"]
[null,"Rouge"]
[null,"Noir"]
[null,"Vert"]
[null,"Bleu"]
[null,"Grais"]
[null,"Marron"]
[null,"Orange"]
[null,"Argent"]
[null,"Violet"]
[null,"Rose"]
[null,"Jaune"]
[null,"Rouge"]
[null,"Noir"]
[null,"Vert"]
[null,"Bleu"]
[null,"Grais"]
[null,"Marron"]
[null,"Orange"]
[null,"Argent"]
[null,"Violet"]
[null,"Rose"]
[null,"Jaune"]
[null,"Rouge"]
[null,"Noir"]
[null,"Vert"]
[null,"Bleu"]
[null,"Grais"]
[null,"Marron"]
[null,"Orange"]
[null,"Argent"]
[null,"Violet"]
[null,"Rose"]
[null,"Jaune"]